{"text_format":"1","workbook":"xlsx","n_sheets":36,"sheets":["list","Introduction","Part 1 Identify Region","Part 2 Instructions","_Planning","Public_Info_and_Warning","Operational_Coordination","Forensics_and_Attribution","Intelligence_and_Info_Sharing","Interdiction_and_Disruption","Screening_Search_and_Detection","Access_Control_ID_Verifi","Cybersecurity","Physical_Protective_Measures","Risk_Mgt_Protect_Prog_Activity","Supply_Chain_Integrity_Security","Community_Resillience","Longterm_Vulnerability","Risk_Disaster_Resillience_Mgt","Threats_Hazard_Identification","Critical_Transportation","Environment_ResponseHealth_Safe","Fatality_Management_Services","Mass_Care_Services","Mass_Search_Rescue_Operations","Onscene_Security_Protection","Operational_Communication","Public_Health_Medical_Services","PublicPrivate_ServicesResources","Situational_Assessment","Infrastructure_Systems","Economic_Recovery","Health_and_Social_Services","Housing","Natural_and_Cultural_Resources","Part 3 Prioritization"],"not_rendered":{"charts":0,"images":4,"macros":1,"external_links":1,"defined_names":55,"comments":1,"pivot_tables":0},"unopened":[],"bounds":{"document_bytes":16777216,"sheet_cells":100000,"rows_first":2000,"rows_last":500,"rows_between":2000,"halvings":0,"cell_chars":16384,"cell_head_chars":4096},"cells_cut":0,"cells_raw":0,"read":"whole","date_system":"1900"}

{"sheet":"list","index":0,"n_rows":87,"n_cols":9,"rows_kept":87,"cut":false,"hidden":true,"merged":[[0,7,54,7],[57,7,67,7],[0,3,22,3],[24,3,82,3],[0,5,55,5]]}
[null,null,null,"Part 1 Introductory","Start Cell: D4","Interdiction and Disruption\nScreening Search and Detection\nIntelligence and Information Sharing\n(2)","Start Cell: D3","Forensics and Attribution\nAccess Control ID Verifi\nCybersecurity\nPhysical Protective Measures\nRisk Mgt Protect Prog Activity\nSupply Chain Integrity Security\nCommunity Resillience\nLongterm Vulnerability\nRisk Disaster Resillience Mgt\nThreats Hazard Identification\nCritical Transportation\nEnvironment Response Health Safe\nFatality Management Services\nMass Care Services\nMass Search Rescue Operations\nOnscene Security Protection\nOperational Communication\nPublic Private Services Resources\nSituational Assessment\nInfrastructure Systems\nEconomic Recovery\nHealth and Social Services\nHousing\nNatural and Cultural Resources\n","Start Cell: D3"]
["No plan/annexes exists",1,null,null,"D7",null,"D6",null,"D6"]
["Some plans/annexes exists",2,null,null,"D11",null,"D11",null,"D11"]
["Plans/annexes are complete but require update",3,null,null,"B16",null,"D14",null,"D19"]
["Plans/annexes are complete and have been updated within 5 years",4,null,null,"D16",null,"D22",null,"D22"]
["Plans/annexes are complete, updated, verified through exercises or real world events",5,null,null,"B17",null,"D25",null,"D23"]
["N/A","N/A",null,null,"D17",null,"D26",null,"J23"]
[null,null,null,null,"B18",null,"J26",null,"L23"]
[null,null,null,null,"D18",null,"L26",null,"N23"]
["0-20% of required organization/personnel exists",1,null,null,"B19",null,"N26",null,"D24"]
["21-40% of required organization/personnel exists",2,null,null,"D19",null,"D27",null,"J24"]
["41-60% of required organization/personnel exists",3,null,null,"B20",null,"J27",null,"L24"]
["61-80% of required organization/personnel exists",4,null,null,"D20",null,"L27",null,"N24"]
["81-100% of required organization/personnel exists",5,null,null,"B21",null,"N27",null,"D27"]
["N/A","N/A",null,null,"D21",null,"D30",null,"D30"]
[null,null,null,null,"B22",null,"D33",null,"D31"]
[null,null,null,null,"D22",null,"D34",null,"J31"]
["0-20% of required equipment exists",1,null,null,"B23",null,"J34",null,"L31"]
["21-40% of required equipment exists",2,null,null,"D23",null,"L34",null,"N31"]
["41-60% of required equipment exists",3,null,null,"B24",null,"N34",null,"D32"]
["61-80% of required equipment exists",4,null,null,"D24",null,"D35",null,"J32"]
["81-100% of required equipment exists",5,null,null,"B25",null,"J35",null,"L32"]
["N/A","N/A",null,null,"End Cell: D25",null,"L35",null,"N32"]
[null,null,null,null,null,null,"N35",null,"D35"]
[null,null,null,"Planning\nOperational Coordination\nPublic Info and Warning\n(5)","Start Cell: D3",null,"D38",null,"D38"]
[null,null,null,null,"D6",null,"D41",null,"D39"]
["0-20% of required training exists",1,null,null,"D11",null,"D42",null,"J39"]
["21-40% of required training exists",2,null,null,"D14",null,"J42",null,"L39"]
["41-60% of required training exists",3,null,null,"D17",null,"L42",null,"N39"]
["61-80% of required training exists",4,null,null,"D20",null,"N42",null,"D40"]
["81-100% of required training exists",5,null,null,"D23",null,"D43",null,"J40"]
["N/A","N/A",null,null,"D31",null,"J43",null,"L40"]
[null,null,null,null,"D34",null,"L43",null,"N40"]
[null,null,null,null,"D35",null,"N43",null,"D43"]
["No exercises/real-world demonstrations have occurred in the last five years",1,null,null,"J35",null,"D46",null,"D46"]
["Exercises/real-world demonstrations have occured; many mission critical findings exists",2,null,null,"L35",null,"D49",null,"D47"]
["Exercises/real-world demonstrations have occured; few mission critical findings exists",3,null,null,"N35",null,"D50",null,"J47"]
["Exercises/real-world demonstrations have occured; some areas for improvement exists",4,null,null,"D36",null,"J50",null,"L47"]
["Exercises/real-world demonstrations have occurred; no areas for improvement exists",5,null,null,"L36",null,"L50",null,"N47"]
["N/A","N/A",null,null,"J36",null,"N50",null,"D48"]
[null,null,null,null,"N36",null,"D51",null,"J48"]
[null,null,null,null,"D39",null,"J51",null,"L48"]
[null,null,null,null,"D42",null,"L51",null,"N48"]
[null,null,null,null,"D43",null,"N51",null,"D51"]
[null,null,null,null,"J43",null,"D54",null,"D54"]
[null,null,null,null,"L43",null,"D57",null,"D55"]
[null,null,null,null,"N43",null,"D58",null,"J55"]
[null,null,null,null,"D44",null,"J58",null,"L55"]
["A (Rural)",null,null,null,"J44",null,"L58",null,"N55"]
["A (Urban)",null,null,null,"L44",null,"N58",null,"D56"]
["B",null,null,null,"N44",null,"D59",null,"J56"]
["C",null,null,null,"D47",null,"J59",null,"L56"]
["D",null,null,null,"D50",null,"L59",null,"N56"]
["E",null,null,null,"D51",null,"N59",null,"D59"]
["F",null,null,null,"J51",null,"D62",null,"End Cell: D62"]
["G",null,null,null,"L51",null,"End Cell: D65"]
["H",null,null,null,"N51"]
["I",null,null,null,"D52",null,null,"Part 3 Prioritization","Start Cell: G13"]
[null,null,null,null,"J52",null,null,null,"G16"]
["Forensics and Attribution",null,null,null,"L52",null,null,null,"G19"]
["Intelligence and Information Sharing",null,null,null,"N52",null,null,null,"G22"]
["Interdiction and Disruption",null,null,null,"D55",null,null,null,"G25"]
["Search and Detection",null,null,null,"D58",null,null,null,"G28"]
["Access Control and Identity Verification",null,null,null,"D59",null,null,null,"G31"]
["Cybersecurity",null,null,null,"J59",null,null,null,"G34"]
["Physical Protective Measures",null,null,null,"L59",null,null,null,"G37"]
["Risk Management for Protection Programs and Activities",null,null,null,"N59",null,null,null,"G40"]
["Supply Chain Integrity and Security",null,null,null,"D60",null,null,null,"End Cell: G43"]
["Community Resilience",null,null,null,"J60"]
["Long-term Vulnerability",null,null,null,"L60"]
["Risk and Disaster Resilience Management",null,null,null,"N60"]
["Threats and Hazard Identification",null,null,null,"D63"]
["Critical Transportation",null,null,null,"D66"]
["Environmental Response/Health and Safety",null,null,null,"D67"]
["Fatality Management Services",null,null,null,"J67"]
["Mass Care Services",null,null,null,"L67"]
["Mass Search and Rescue Operations",null,null,null,"N67"]
["On-scene Security and Protection",null,null,null,"D68"]
["Operational Communication",null,null,null,"J68"]
["Public Health and Medical Services",null,null,null,"L68"]
["Public and Private Services and Resources",null,null,null,"N68"]
["Situational Assessment",null,null,null,"D71"]
["Infrastructure Systems",null,null,null,"End Cell: D74"]
["Economic Recovery"]
["Health and Social Services"]
["Housing"]
["Natural and Cultural Resources"]

{"sheet":"Introduction","index":1,"n_rows":3,"n_cols":1,"rows_kept":3,"cut":false,"hidden":false,"merged":[[0,0,0,14],[1,0,1,14],[2,0,20,14],[21,0,21,14]]}
["2014 Regional THIRA Data Entry Form"]
[]
["                                                                                                                                                                                                        "]

{"sheet":"Part 1 Identify Region","index":2,"n_rows":15,"n_cols":4,"rows_kept":15,"cut":false,"hidden":false,"merged":[[24,1,24,2],[15,3,15,4],[16,3,16,4],[17,3,17,4],[18,3,18,4],[20,3,20,4],[19,3,19,4],[21,3,21,4],[22,3,22,4],[23,3,23,4],[20,1,20,2],[21,1,21,2],[22,1,22,2],[23,1,23,2],[19,1,19,2],[13,1,13,4],[35,0,35,14],[10,3,10,4],[0,0,0,14],[1,0,1,14],[6,3,6,4],[7,3,7,4],[11,3,11,4],[24,3,24,4],[14,3,14,4],[15,1,15,2],[16,1,16,2],[14,1,14,2],[17,1,17,2],[18,1,18,2],[25,1,25,4]]}
["Part 1 Identify Region"]
[]
[]
[null,"Region"]
[]
[]
[null,"Submitted By"]
[]
[]
[]
[null,"Date"]
[]
[]
[null,"Participants"]
[null,"Name",null,"Jurisdiction"]

{"sheet":"Part 2 Instructions","index":3,"n_rows":4,"n_cols":1,"rows_kept":4,"cut":false,"hidden":false,"merged":[[0,0,0,14],[1,0,1,14],[3,0,3,14],[45,0,45,14]]}
["Part 2 Assessment Capabilities"]
[]
[]
["Instructions for Part 2"]

{"sheet":"_Planning","index":4,"n_rows":74,"n_cols":14,"rows_kept":74,"cut":false,"hidden":false,"merged":[[74,3,74,7],[65,3,65,13],[66,3,66,7],[67,3,67,7],[70,3,70,13],[71,3,71,7],[73,3,73,13],[63,3,63,7],[46,3,46,6],[47,3,47,7],[49,3,49,13],[50,3,50,7],[51,3,51,7],[54,3,54,6],[55,3,55,7],[57,3,57,13],[58,3,58,7],[59,3,59,7],[62,3,62,6],[43,3,43,7],[27,1,27,6],[28,1,28,7],[30,3,30,6],[31,3,31,7],[33,3,33,13],[34,3,34,7],[35,3,35,7],[38,3,38,6],[39,3,39,7],[41,3,41,13],[42,3,42,7],[25,1,25,13],[0,0,0,14],[2,3,2,13],[3,3,3,13],[5,3,5,13],[6,3,6,13],[8,1,8,13],[10,3,10,13],[13,3,13,13],[16,3,16,13],[19,3,19,13],[22,3,22,13]]}
["Core Capability: Planning"]
[]
[null,"THIRA Capability Target"]
[]
[]
[null,"Improvement Strategy"]
[]
[]
[null,"Mission Area Recommendations for improvement"]
[]
[null,"Prevention"]
[]
[]
[null,"Protection"]
[]
[]
[null,"Mitigation"]
[]
[]
[null,"Response"]
[]
[]
[null,"Recovery"]
[]
[]
[null,"POETE Scores and Costs"]
[]
[null,"Make a selection from the drop down boxes for each POETE category.  Identify any gap that you have for each POETE in this core capability, include plans to reduce this gap. If applicable add a project and give a detailed description. Enter sustainment cost and if there will be a new project cost. If applicable enter the projected sustainment cost for the new project.",null,null,null,null,null,"Score",null,"Sustainment cost",null,"New Project cost",null,"Projected sustainment cost for new projects"]
[]
[]
[null,"Planning",null,null,null,null,null,{"$f":"INDEX(list!$A$1:$B$7,MATCH(_Planning!D31,Planning,0),2)","v":{"$error":"#N/A"}}]
[]
[]
[null,"Gap Description"]
[null,"ADD Project",null,null,null,null,null,null,null," "]
[null,"ADD Project",null,null,null,null,null,null,null," "]
[]
[]
[null,"Organization",null,null,null,null,null,{"$f":"INDEX(list!$A$9:$B$15,MATCH(_Planning!D39,Organization,0),2)","v":{"$error":"#N/A"}},null," "]
[]
[]
[null,"Gap Description",null," "]
[null,"ADD Project"]
[null,"ADD Project",null,null,null,null,null,null,null," "]
[]
[]
[null,"Equipment",null,null,null,null,null,{"$f":"INDEX(list!$A$17:$B$23,MATCH(_Planning!D47,Equipment,0),2)","v":{"$error":"#N/A"}}]
[]
[]
[null,"Gap Description",null," "]
[null,"ADD Project",null,null,null,null,null,null,null," "]
[null,"ADD Project",null,null,null,null,null,null,null," "]
[]
[]
[null,"Training",null,null,null,null,null,{"$f":"INDEX(list!$A$26:$B$32,MATCH(_Planning!D55,Training,0),2)","v":{"$error":"#N/A"}}]
[]
[]
[null,"Gap Description",null," "]
[null,"ADD Project",null,null,null,null,null,null,null," "]
[null,"ADD Project",null,null,null,null,null,null,null," "]
[]
[]
[null,"Exercise",null,null,null,null,null,{"$f":"INDEX(list!$A$34:$B$40,MATCH(_Planning!D63,Exercises,0),2)","v":{"$error":"#N/A"}}]
[]
[]
[null,"Gap Description",null," "]
[null,"ADD Project",null,null,null,null,null,null,null," "]
[null,"ADD Project",null,null,null,null,null,null,null," "]
[]
[]
[null,"Mutual Aid Description"]
[]
[]
[null,"Journal Notes"]

{"sheet":"Public_Info_and_Warning","index":5,"n_rows":74,"n_cols":14,"rows_kept":74,"cut":false,"hidden":false,"merged":[[74,3,74,7],[65,3,65,13],[66,3,66,7],[67,3,67,7],[70,3,70,13],[71,3,71,7],[73,3,73,13],[63,3,63,7],[46,3,46,6],[47,3,47,7],[49,3,49,13],[50,3,50,7],[51,3,51,7],[54,3,54,6],[55,3,55,7],[57,3,57,13],[58,3,58,7],[59,3,59,7],[62,3,62,6],[43,3,43,7],[27,1,27,6],[28,1,28,7],[30,3,30,6],[31,3,31,7],[33,3,33,13],[34,3,34,7],[35,3,35,7],[38,3,38,6],[39,3,39,7],[41,3,41,13],[42,3,42,7],[25,1,25,13],[0,0,0,14],[2,3,2,13],[3,3,3,13],[5,3,5,13],[6,3,6,13],[8,1,8,13],[10,3,10,13],[13,3,13,13],[16,3,16,13],[19,3,19,13],[22,3,22,13]]}
["Core Capability: Public Information and Warning"]
[]
[null,"THIRA Capability Target"]
[]
[]
[null,"Improvement Strategy"]
[]
[]
[null,"Mission Area Recommendations for improvement"]
[]
[null,"Prevention"]
[]
[]
[null,"Protection"]
[]
[]
[null,"Mitigation"]
[]
[]
[null,"Response"]
[]
[]
[null,"Recovery"]
[]
[]
[null,"POETE Scores and Costs"]
[]
[null,"Make a selection from the drop down boxes for each POETE category.  Identify any gap that you have for each POETE in this core capability, include plans to reduce this gap. If applicable add a project and give a detailed description. Enter sustainment cost and if there will be a new project cost. If applicable enter the projected sustainment cost for the new project.",null,null,null,null,null,"Score",null,"Sustainment cost",null,"New Project cost",null,"Projected sustainment cost for new projects"]
[]
[]
[null,"Planning",null,null,null,null,null,{"$f":"INDEX(list!$A$1:$B$7,MATCH(Public_Info_and_Warning!D31,Planning,0),2)","v":{"$error":"#N/A"}}]
[]
[]
[null,"Gap Description"]
[null,"ADD Project"]
[null,"ADD Project",null,null,null,null,null,null,null," "]
[]
[]
[null,"Organization",null,null,null,null,null,{"$f":"INDEX(list!$A$9:$B$15,MATCH(Public_Info_and_Warning!D39,Organization,0),2)","v":{"$error":"#N/A"}},null," "]
[]
[]
[null,"Gap Description",null," "]
[null,"ADD Project"]
[null,"ADD Project",null,null,null,null,null,null,null," "]
[]
[]
[null,"Equipment",null,null,null,null,null,{"$f":"INDEX(list!$A$17:$B$23,MATCH(Public_Info_and_Warning!D47,Equipment,0),2)","v":{"$error":"#N/A"}}]
[]
[]
[null,"Gap Description",null," "]
[null,"ADD Project",null,null,null,null,null,null,null," "]
[null,"ADD Project",null,null,null,null,null,null,null," "]
[]
[]
[null,"Training",null,null,null,null,null,{"$f":"INDEX(list!$A$26:$B$32,MATCH(Public_Info_and_Warning!D55,Training,0),2)","v":{"$error":"#N/A"}}]
[]
[]
[null,"Gap Description",null," "]
[null,"ADD Project",null,null,null,null,null,null,null," "]
[null,"ADD Project",null,null,null,null,null,null,null," "]
[]
[]
[null,"Exercise",null,null,null,null,null,{"$f":"INDEX(list!$A$34:$B$40,MATCH(Public_Info_and_Warning!D63,Exercises,0),2)","v":{"$error":"#N/A"}}]
[]
[]
[null,"Gap Description",null," "]
[null,"ADD Project",null,null,null,null,null,null,null," "]
[null,"ADD Project",null,null,null,null,null,null,null," "]
[]
[]
[null,"Mutual Aid Description"]
[]
[]
[null,"Journal Notes"]

{"sheet":"Operational_Coordination","index":6,"n_rows":74,"n_cols":14,"rows_kept":74,"cut":false,"hidden":false,"merged":[[74,3,74,7],[63,3,63,7],[65,3,65,13],[66,3,66,7],[67,3,67,7],[70,3,70,13],[71,3,71,7],[73,3,73,13],[55,3,55,7],[57,3,57,13],[58,3,58,7],[59,3,59,7],[62,3,62,6],[47,3,47,7],[49,3,49,13],[50,3,50,7],[51,3,51,7],[54,3,54,6],[39,3,39,7],[41,3,41,13],[42,3,42,7],[43,3,43,7],[46,3,46,6],[31,3,31,7],[33,3,33,13],[34,3,34,7],[35,3,35,7],[38,3,38,6],[22,3,22,13],[25,1,25,13],[27,1,27,6],[28,1,28,7],[30,3,30,6],[8,1,8,13],[10,3,10,13],[13,3,13,13],[16,3,16,13],[19,3,19,13],[0,0,0,14],[2,3,2,13],[3,3,3,13],[5,3,5,13],[6,3,6,13]]}
["Core Capability: Operational Coordination"]
[]
[null,"THIRA Capability Target"]
[]
[]
[null,"Improvement Strategy"]
[]
[null,null,null,null,null,null,null,null,null,11]
[null,"Mission Area Recommendations for improvement"]
[]
[null,"Prevention"]
[]
[]
[null,"Protection"]
[]
[]
[null,"Mitigation"]
[]
[]
[null,"Response"]
[]
[]
[null,"Recovery"]
[]
[]
[null,"POETE Scores and Costs"]
[]
[null,"Make a selection from the drop down boxes for each POETE category.  Identify any gap that you have for each POETE in this core capability, include plans to reduce this gap. If applicable add a project and give a detailed description. Enter sustainment cost and if there will be a new project cost. If applicable enter the projected sustainment cost for the new project.",null,null,null,null,null,"Score",null,"Sustainment cost",null,"New Project cost",null,"Projected sustainment cost for new projects"]
[]
[]
[null,"Planning",null,null,null,null,null,{"$f":"INDEX(list!$A$1:$B$7,MATCH(Operational_Coordination!D31,Planning,0),2)","v":{"$error":"#N/A"}}]
[]
[]
[null,"Gap Description"]
[null,"ADD Project",null,null,null,null,null,null,null," "]
[null,"ADD Project",null,null,null,null,null,null,null," "]
[]
[]
[null,"Organization",null,null,null,null,null,{"$f":"INDEX(list!$A$9:$B$15,MATCH(Operational_Coordination!D39,Organization,0),2)","v":{"$error":"#N/A"}},null," "]
[]
[]
[null,"Gap Description",null," "]
[null,"ADD Project"]
[null,"ADD Project",null,null,null,null,null,null,null," "]
[]
[]
[null,"Equipment",null,null,null,null,null,{"$f":"INDEX(list!$A$17:$B$23,MATCH(Operational_Coordination!D47,Equipment,0),2)","v":{"$error":"#N/A"}}]
[]
[]
[null,"Gap Description",null," "]
[null,"ADD Project",null,null,null,null,null,null,null," "]
[null,"ADD Project",null,null,null,null,null,null,null," "]
[]
[]
[null,"Training",null,null,null,null,null,{"$f":"INDEX(list!$A$26:$B$32,MATCH(Operational_Coordination!D55,Training,0),2)","v":{"$error":"#N/A"}}]
[]
[]
[null,"Gap Description",null," "]
[null,"ADD Project",null,null,null,null,null,null,null," "]
[null,"ADD Project",null,null,null,null,null,null,null," "]
[]
[]
[null,"Exercise",null,null,null,null,null,{"$f":"INDEX(list!$A$34:$B$40,MATCH(Operational_Coordination!D63,Exercises,0),2)","v":{"$error":"#N/A"}}]
[]
[]
[null,"Gap Description",null," "]
[null,"ADD Project",null,null,null,null,null,null,null," "]
[null,"ADD Project",null,null,null,null,null,null,null," "]
[]
[]
[null,"Mutual Aid Description"]
[]
[]
[null,"Journal Notes"]

{"sheet":"Forensics_and_Attribution","index":7,"n_rows":62,"n_cols":14,"rows_kept":62,"cut":false,"hidden":false,"merged":[[62,3,62,7],[53,3,53,13],[54,3,54,7],[55,3,55,7],[58,3,58,13],[59,3,59,7],[61,3,61,13],[51,3,51,7],[34,3,34,6],[35,3,35,7],[37,3,37,13],[38,3,38,7],[39,3,39,7],[42,3,42,6],[43,3,43,7],[45,3,45,13],[46,3,46,7],[47,3,47,7],[50,3,50,6],[31,3,31,7],[15,1,15,6],[16,1,16,7],[18,3,18,6],[19,3,19,7],[21,3,21,13],[22,3,22,7],[23,3,23,7],[26,3,26,6],[27,3,27,7],[29,3,29,13],[30,3,30,7],[13,1,13,13],[0,0,0,14],[2,3,2,13],[3,3,3,13],[5,3,5,13],[6,3,6,13],[8,1,8,13],[10,3,10,13]]}
["Core Capability: Forensics and Attribution"]
[]
[null,"THIRA Capability Target"]
[]
[]
[null,"Improvement Strategy"]
[]
[]
[null,"Mission Area Recommendations for improvement"]
[]
[null,"Prevention"]
[]
[]
[null,"POETE Scores and Costs"]
[]
[null,"Make a selection from the drop down boxes for each POETE category.  Identify any gap that you have for each POETE in this core capability, include plans to reduce this gap. If applicable add a project and give a detailed description. Enter sustainment cost and if there will be a new project cost. If applicable enter the projected sustainment cost for the new project.",null,null,null,null,null,"Score",null,"Sustainment cost",null,"New Project cost",null,"Projected sustainment cost for new projects"]
[]
[]
[null,"Planning",null,null,null,null,null,{"$f":"INDEX(list!$A$1:$B$7,MATCH(Forensics_and_Attribution!D19,Planning,0),2)","v":{"$error":"#N/A"}}]
[]
[]
[null,"Gap Description"]
[null,"ADD Project",null,null,null,null,null,null,null," "]
[null,"ADD Project",null,null,null,null,null,null,null," "]
[]
[]
[null,"Organization",null,null,null,null,null,{"$f":"INDEX(list!$A$9:$B$15,MATCH(Forensics_and_Attribution!D27,Organization,0),2)","v":{"$error":"#N/A"}},null," "]
[]
[]
[null,"Gap Description",null," "]
[null,"ADD Project"]
[null,"ADD Project",null,null,null,null,null,null,null," "]
[]
[]
[null,"Equipment",null,null,null,null,null,{"$f":"INDEX(list!$A$17:$B$23,MATCH(Forensics_and_Attribution!D35,Equipment,0),2)","v":{"$error":"#N/A"}}]
[]
[]
[null,"Gap Description",null," "]
[null,"ADD Project",null,null,null,null,null,null,null," "]
[null,"ADD Project",null,null,null,null,null,null,null," "]
[]
[]
[null,"Training",null,null,null,null,null,{"$f":"INDEX(list!$A$26:$B$32,MATCH(Forensics_and_Attribution!D43,Training,0),2)","v":{"$error":"#N/A"}}]
[]
[]
[null,"Gap Description",null," "]
[null,"ADD Project",null,null,null,null,null,null,null," "]
[null,"ADD Project",null,null,null,null,null,null,null," "]
[]
[]
[null,"Exercise",null,null,null,null,null,{"$f":"INDEX(list!$A$34:$B$40,MATCH(Forensics_and_Attribution!D51,Exercises,0),2)","v":{"$error":"#N/A"}}]
[]
[]
[null,"Gap Description",null," "]
[null,"ADD Project",null,null,null,null,null,null,null," "]
[null,"ADD Project",null,null,null,null,null,null,null," "]
[]
[]
[null,"Mutual Aid Description"]
[]
[]
[null,"Journal Notes"]

{"sheet":"Intelligence_and_Info_Sharing","index":8,"n_rows":65,"n_cols":14,"rows_kept":65,"cut":false,"hidden":false,"merged":[[65,3,65,7],[56,3,56,13],[57,3,57,7],[58,3,58,7],[61,3,61,13],[62,3,62,7],[64,3,64,13],[54,3,54,7],[37,3,37,6],[38,3,38,7],[40,3,40,13],[41,3,41,7],[42,3,42,7],[45,3,45,6],[46,3,46,7],[48,3,48,13],[49,3,49,7],[50,3,50,7],[53,3,53,6],[34,3,34,7],[18,1,18,6],[19,1,19,7],[21,3,21,6],[22,3,22,7],[24,3,24,13],[25,3,25,7],[26,3,26,7],[29,3,29,6],[30,3,30,7],[32,3,32,13],[33,3,33,7],[16,1,16,13],[0,0,0,14],[2,3,2,13],[3,3,3,13],[5,3,5,13],[6,3,6,13],[8,1,8,13],[10,3,10,13],[13,3,13,13]]}
["Core Capability: Intelligence and Information Sharing"]
[]
[null,"THIRA Capability Target"]
[]
[]
[null,"Improvement Strategy"]
[]
[]
[null,"Mission Area Recommendations for improvement"]
[]
[null,"Prevention"]
[]
[]
[null,"Protection"]
[]
[]
[null,"POETE Scores and Costs"]
[]
[null,"Make a selection from the drop down boxes for each POETE category.  Identify any gap that you have for each POETE in this core capability, include plans to reduce this gap. If applicable add a project and give a detailed description. Enter sustainment cost and if there will be a new project cost. If applicable enter the projected sustainment cost for the new project.",null,null,null,null,null,"Score",null,"Sustainment cost",null,"New Project cost",null,"Projected sustainment cost for new projects"]
[]
[]
[null,"Planning",null,null,null,null,null,{"$f":"INDEX(list!$A$1:$B$7,MATCH(Intelligence_and_Info_Sharing!D22,Planning,0),2)","v":{"$error":"#N/A"}}]
[]
[]
[null,"Gap Description"]
[null,"ADD Project",null,null,null,null,null,null,null," "]
[null,"ADD Project",null,null,null,null,null,null,null," "]
[]
[]
[null,"Organization",null,null,null,null,null,{"$f":"INDEX(list!$A$9:$B$15,MATCH(Intelligence_and_Info_Sharing!D30,Organization,0),2)","v":{"$error":"#N/A"}},null," "]
[]
[]
[null,"Gap Description",null," "]
[null,"ADD Project"]
[null,"ADD Project",null,null,null,null,null,null,null," "]
[]
[]
[null,"Equipment",null,null,null,null,null,{"$f":"INDEX(list!$A$17:$B$23,MATCH(Intelligence_and_Info_Sharing!D38,Equipment,0),2)","v":{"$error":"#N/A"}}]
[]
[]
[null,"Gap Description",null," "]
[null,"ADD Project",null,null,null,null,null,null,null," "]
[null,"ADD Project",null,null,null,null,null,null,null," "]
[]
[]
[null,"Training",null,null,null,null,null,{"$f":"INDEX(list!$A$26:$B$32,MATCH(Intelligence_and_Info_Sharing!D46,Training,0),2)","v":{"$error":"#N/A"}}]
[]
[]
[null,"Gap Description",null," "]
[null,"ADD Project",null,null,null,null,null,null,null," "]
[null,"ADD Project",null,null,null,null,null,null,null," "]
[]
[]
[null,"Exercise",null,null,null,null,null,{"$f":"INDEX(list!$A$34:$B$40,MATCH(Intelligence_and_Info_Sharing!D54,Exercises,0),2)","v":{"$error":"#N/A"}}]
[]
[]
[null,"Gap Description",null," "]
[null,"ADD Project",null,null,null,null,null,null,null," "]
[null,"ADD Project",null,null,null,null,null,null,null," "]
[]
[]
[null,"Mutual Aid Description"]
[]
[]
[null,"Journal Notes"]

{"sheet":"Interdiction_and_Disruption","index":9,"n_rows":65,"n_cols":14,"rows_kept":65,"cut":false,"hidden":false,"merged":[[65,3,65,7],[56,3,56,13],[57,3,57,7],[58,3,58,7],[61,3,61,13],[62,3,62,7],[64,3,64,13],[54,3,54,7],[37,3,37,6],[38,3,38,7],[40,3,40,13],[41,3,41,7],[42,3,42,7],[45,3,45,6],[46,3,46,7],[48,3,48,13],[49,3,49,7],[50,3,50,7],[53,3,53,6],[34,3,34,7],[18,1,18,6],[19,1,19,7],[21,3,21,6],[22,3,22,7],[24,3,24,13],[25,3,25,7],[26,3,26,7],[29,3,29,6],[30,3,30,7],[32,3,32,13],[33,3,33,7],[16,1,16,13],[0,0,0,14],[2,3,2,13],[3,3,3,13],[5,3,5,13],[6,3,6,13],[8,1,8,13],[10,3,10,13],[13,3,13,13]]}
["Core Capability: Interdiction and Disruption"]
[]
[null,"THIRA Capability Target"]
[]
[]
[null,"Improvement Strategy"]
[]
[]
[null,"Mission Area Recommendations for improvement"]
[]
[null,"Prevention"]
[]
[]
[null,"Protection"]
[]
[]
[null,"POETE Scores and Costs"]
[]
[null,"Make a selection from the drop down boxes for each POETE category.  Identify any gap that you have for each POETE in this core capability, include plans to reduce this gap. If applicable add a project and give a detailed description. Enter sustainment cost and if there will be a new project cost. If applicable enter the projected sustainment cost for the new project.",null,null,null,null,null,"Score",null,"Sustainment cost",null,"New Project cost",null,"Projected sustainment cost for new projects"]
[]
[]
[null,"Planning",null,null,null,null,null,{"$f":"INDEX(list!$A$1:$B$7,MATCH(Interdiction_and_Disruption!D22,Planning,0),2)","v":{"$error":"#N/A"}}]
[]
[]
[null,"Gap Description"]
[null,"ADD Project",null,null,null,null,null,null,null," "]
[null,"ADD Project",null,null,null,null,null,null,null," "]
[]
[]
[null,"Organization",null,null,null,null,null,{"$f":"INDEX(list!$A$9:$B$15,MATCH(Interdiction_and_Disruption!D30,Organization,0),2)","v":{"$error":"#N/A"}},null," "]
[]
[]
[null,"Gap Description",null," "]
[null,"ADD Project"]
[null,"ADD Project",null,null,null,null,null,null,null," "]
[]
[]
[null,"Equipment",null,null,null,null,null,{"$f":"INDEX(list!$A$17:$B$23,MATCH(Interdiction_and_Disruption!D38,Equipment,0),2)","v":{"$error":"#N/A"}}]
[]
[]
[null,"Gap Description",null," "]
[null,"ADD Project",null,null,null,null,null,null,null," "]
[null,"ADD Project",null,null,null,null,null,null,null," "]
[]
[]
[null,"Training",null,null,null,null,null,{"$f":"INDEX(list!$A$26:$B$32,MATCH(Interdiction_and_Disruption!D46,Training,0),2)","v":{"$error":"#N/A"}}]
[]
[]
[null,"Gap Description",null," "]
[null,"ADD Project",null,null,null,null,null,null,null," "]
[null,"ADD Project",null,null,null,null,null,null,null," "]
[]
[]
[null,"Exercise",null,null,null,null,null,{"$f":"INDEX(list!$A$34:$B$40,MATCH(Interdiction_and_Disruption!D54,Exercises,0),2)","v":{"$error":"#N/A"}}]
[]
[]
[null,"Gap Description",null," "]
[null,"ADD Project",null,null,null,null,null,null,null," "]
[null,"ADD Project",null,null,null,null,null,null,null," "]
[]
[]
[null,"Mutual Aid Description"]
[]
[]
[null,"Journal Notes"]

{"sheet":"Screening_Search_and_Detection","index":10,"n_rows":65,"n_cols":14,"rows_kept":65,"cut":false,"hidden":false,"merged":[[65,3,65,7],[56,3,56,13],[57,3,57,7],[58,3,58,7],[61,3,61,13],[62,3,62,7],[64,3,64,13],[54,3,54,7],[37,3,37,6],[38,3,38,7],[40,3,40,13],[41,3,41,7],[42,3,42,7],[45,3,45,6],[46,3,46,7],[48,3,48,13],[49,3,49,7],[50,3,50,7],[53,3,53,6],[34,3,34,7],[18,1,18,6],[19,1,19,7],[21,3,21,6],[22,3,22,7],[24,3,24,13],[25,3,25,7],[26,3,26,7],[29,3,29,6],[30,3,30,7],[32,3,32,13],[33,3,33,7],[16,1,16,13],[0,0,0,14],[2,3,2,13],[3,3,3,13],[5,3,5,13],[6,3,6,13],[8,1,8,13],[10,3,10,13],[13,3,13,13]]}
["Core Capability: Screening, Search and Detection"]
[]
[null,"THIRA Capability Target"]
[]
[]
[null,"Improvement Strategy"]
[]
[]
[null,"Mission Area Recommendations for improvement"]
[]
[null,"Prevention"]
[]
[]
[null,"Protection"]
[]
[]
[null,"POETE Scores and Costs"]
[]
[null,"Make a selection from the drop down boxes for each POETE category.  Identify any gap that you have for each POETE in this core capability, include plans to reduce this gap. If applicable add a project and give a detailed description. Enter sustainment cost and if there will be a new project cost. If applicable enter the projected sustainment cost for the new project.",null,null,null,null,null,"Score",null,"Sustainment cost",null,"New Project cost",null,"Projected sustainment cost for new projects"]
[]
[]
[null,"Planning",null,null,null,null,null,{"$f":"INDEX(list!$A$1:$B$7,MATCH(Screening_Search_and_Detection!D22,Planning,0),2)","v":{"$error":"#N/A"}}]
[]
[]
[null,"Gap Description"]
[null,"ADD Project",null,null,null,null,null,null,null," "]
[null,"ADD Project",null,null,null,null,null,null,null," "]
[]
[]
[null,"Organization",null,null,null,null,null,{"$f":"INDEX(list!$A$9:$B$15,MATCH(Screening_Search_and_Detection!D30,Organization,0),2)","v":{"$error":"#N/A"}},null," "]
[]
[]
[null,"Gap Description",null," "]
[null,"ADD Project"]
[null,"ADD Project",null,null,null,null,null,null,null," "]
[]
[]
[null,"Equipment",null,null,null,null,null,{"$f":"INDEX(list!$A$17:$B$23,MATCH(Screening_Search_and_Detection!D38,Equipment,0),2)","v":{"$error":"#N/A"}}]
[]
[]
[null,"Gap Description",null," "]
[null,"ADD Project",null,null,null,null,null,null,null," "]
[null,"ADD Project",null,null,null,null,null,null,null," "]
[]
[]
[null,"Training",null,null,null,null,null,{"$f":"INDEX(list!$A$26:$B$32,MATCH(Screening_Search_and_Detection!D46,Training,0),2)","v":{"$error":"#N/A"}}]
[]
[]
[null,"Gap Description",null," "]
[null,"ADD Project",null,null,null,null,null,null,null," "]
[null,"ADD Project",null,null,null,null,null,null,null," "]
[]
[]
[null,"Exercise",null,null,null,null,null,{"$f":"INDEX(list!$A$34:$B$40,MATCH(Screening_Search_and_Detection!D54,Exercises,0),2)","v":{"$error":"#N/A"}}]
[]
[]
[null,"Gap Description",null," "]
[null,"ADD Project",null,null,null,null,null,null,null," "]
[null,"ADD Project",null,null,null,null,null,null,null," "]
[]
[]
[null,"Mutual Aid Description"]
[]
[]
[null,"Journal Notes"]

{"sheet":"Access_Control_ID_Verifi","index":11,"n_rows":62,"n_cols":14,"rows_kept":62,"cut":false,"hidden":false,"merged":[[62,3,62,7],[53,3,53,13],[54,3,54,7],[55,3,55,7],[58,3,58,13],[59,3,59,7],[61,3,61,13],[51,3,51,7],[34,3,34,6],[35,3,35,7],[37,3,37,13],[38,3,38,7],[39,3,39,7],[42,3,42,6],[43,3,43,7],[45,3,45,13],[46,3,46,7],[47,3,47,7],[50,3,50,6],[31,3,31,7],[15,1,15,6],[16,1,16,7],[18,3,18,6],[19,3,19,7],[21,3,21,13],[22,3,22,7],[23,3,23,7],[26,3,26,6],[27,3,27,7],[29,3,29,13],[30,3,30,7],[13,1,13,13],[0,0,0,14],[2,3,2,13],[3,3,3,13],[5,3,5,13],[6,3,6,13],[8,1,8,13],[10,3,10,13]]}
["Core Capability: Access Control and Identity Verification"]
[]
[null,"THIRA Capability Target"]
[]
[]
[null,"Improvement Strategy"]
[]
[]
[null,"Mission Area Recommendations for improvement"]
[]
[null,"Protection"]
[]
[]
[null,"POETE Scores and Costs"]
[]
[null,"Make a selection from the drop down boxes for each POETE category.  Identify any gap that you have for each POETE in this core capability, include plans to reduce this gap. If applicable add a project and give a detailed description. Enter sustainment cost and if there will be a new project cost. If applicable enter the projected sustainment cost for the new project.",null,null,null,null,null,"Score",null,"Sustainment cost",null,"New Project cost",null,"Projected sustainment cost for new projects"]
[]
[]
[null,"Planning",null,null,null,null,null,{"$f":"INDEX(list!$A$1:$B$7,MATCH(Access_Control_ID_Verifi!D19,Planning,0),2)","v":{"$error":"#N/A"}}]
[]
[]
[null,"Gap Description"]
[null,"ADD Project",null,null,null,null,null,null,null," "]
[null,"ADD Project",null,null,null,null,null,null,null," "]
[]
[]
[null,"Organization",null,null,null,null,null,{"$f":"INDEX(list!$A$9:$B$15,MATCH(Access_Control_ID_Verifi!D27,Organization,0),2)","v":{"$error":"#N/A"}},null," "]
[]
[]
[null,"Gap Description",null," "]
[null,"ADD Project"]
[null,"ADD Project",null,null,null,null,null,null,null," "]
[]
[]
[null,"Equipment",null,null,null,null,null,{"$f":"INDEX(list!$A$17:$B$23,MATCH(Access_Control_ID_Verifi!D35,Equipment,0),2)","v":{"$error":"#N/A"}}]
[]
[]
[null,"Gap Description",null," "]
[null,"ADD Project",null,null,null,null,null,null,null," "]
[null,"ADD Project",null,null,null,null,null,null,null," "]
[]
[]
[null,"Training",null,null,null,null,null,{"$f":"INDEX(list!$A$26:$B$32,MATCH(Access_Control_ID_Verifi!D43,Training,0),2)","v":{"$error":"#N/A"}}]
[]
[]
[null,"Gap Description",null," "]
[null,"ADD Project",null,null,null,null,null,null,null," "]
[null,"ADD Project",null,null,null,null,null,null,null," "]
[]
[]
[null,"Exercise",null,null,null,null,null,{"$f":"INDEX(list!$A$34:$B$40,MATCH(Access_Control_ID_Verifi!D51,Exercises,0),2)","v":{"$error":"#N/A"}}]
[]
[]
[null,"Gap Description",null," "]
[null,"ADD Project",null,null,null,null,null,null,null," "]
[null,"ADD Project",null,null,null,null,null,null,null," "]
[]
[]
[null,"Mutual Aid Description"]
[]
[]
[null,"Journal Notes"]

{"sheet":"Cybersecurity","index":12,"n_rows":62,"n_cols":14,"rows_kept":62,"cut":false,"hidden":false,"merged":[[62,3,62,7],[53,3,53,13],[54,3,54,7],[55,3,55,7],[58,3,58,13],[59,3,59,7],[61,3,61,13],[51,3,51,7],[34,3,34,6],[35,3,35,7],[37,3,37,13],[38,3,38,7],[39,3,39,7],[42,3,42,6],[43,3,43,7],[45,3,45,13],[46,3,46,7],[47,3,47,7],[50,3,50,6],[31,3,31,7],[15,1,15,6],[16,1,16,7],[18,3,18,6],[19,3,19,7],[21,3,21,13],[22,3,22,7],[23,3,23,7],[26,3,26,6],[27,3,27,7],[29,3,29,13],[30,3,30,7],[13,1,13,13],[0,0,0,14],[2,3,2,13],[3,3,3,13],[5,3,5,13],[6,3,6,13],[8,1,8,13],[10,3,10,13]]}
["Core Capability: Cybersecurity"]
[]
[null,"THIRA Capability Target"]
[]
[]
[null,"Improvement Strategy"]
[]
[]
[null,"Mission Area Recommendations for improvement"]
[]
[null,"Protection"]
[]
[]
[null,"POETE Scores and Costs"]
[]
[null,"Make a selection from the drop down boxes for each POETE category.  Identify any gap that you have for each POETE in this core capability, include plans to reduce this gap. If applicable add a project and give a detailed description. Enter sustainment cost and if there will be a new project cost. If applicable enter the projected sustainment cost for the new project.",null,null,null,null,null,"Score",null,"Sustainment cost",null,"New Project cost",null,"Projected sustainment cost for new projects"]
[]
[]
[null,"Planning",null,null,null,null,null,{"$f":"INDEX(list!$A$1:$B$7,MATCH(Cybersecurity!D19,Planning,0),2)","v":{"$error":"#N/A"}}]
[]
[]
[null,"Gap Description"]
[null,"ADD Project",null,null,null,null,null,null,null," "]
[null,"ADD Project",null,null,null,null,null,null,null," "]
[]
[]
[null,"Organization",null,null,null,null,null,{"$f":"INDEX(list!$A$9:$B$15,MATCH(Cybersecurity!D27,Organization,0),2)","v":{"$error":"#N/A"}},null," "]
[]
[]
[null,"Gap Description",null," "]
[null,"ADD Project"]
[null,"ADD Project",null,null,null,null,null,null,null," "]
[]
[]
[null,"Equipment",null,null,null,null,null,{"$f":"INDEX(list!$A$17:$B$23,MATCH(Cybersecurity!D35,Equipment,0),2)","v":{"$error":"#N/A"}}]
[]
[]
[null,"Gap Description",null," "]
[null,"ADD Project",null,null,null,null,null,null,null," "]
[null,"ADD Project",null,null,null,null,null,null,null," "]
[]
[]
[null,"Training",null,null,null,null,null,{"$f":"INDEX(list!$A$26:$B$32,MATCH(Cybersecurity!D43,Training,0),2)","v":{"$error":"#N/A"}}]
[]
[]
[null,"Gap Description",null," "]
[null,"ADD Project",null,null,null,null,null,null,null," "]
[null,"ADD Project",null,null,null,null,null,null,null," "]
[]
[]
[null,"Exercise",null,null,null,null,null,{"$f":"INDEX(list!$A$34:$B$40,MATCH(Cybersecurity!D51,Exercises,0),2)","v":{"$error":"#N/A"}}]
[]
[]
[null,"Gap Description",null," "]
[null,"ADD Project",null,null,null,null,null,null,null," "]
[null,"ADD Project",null,null,null,null,null,null,null," "]
[]
[]
[null,"Mutual Aid Description"]
[]
[]
[null,"Journal Notes"]

{"sheet":"Physical_Protective_Measures","index":13,"n_rows":62,"n_cols":14,"rows_kept":62,"cut":false,"hidden":false,"merged":[[62,3,62,7],[53,3,53,13],[54,3,54,7],[55,3,55,7],[58,3,58,13],[59,3,59,7],[61,3,61,13],[51,3,51,7],[34,3,34,6],[35,3,35,7],[37,3,37,13],[38,3,38,7],[39,3,39,7],[42,3,42,6],[43,3,43,7],[45,3,45,13],[46,3,46,7],[47,3,47,7],[50,3,50,6],[31,3,31,7],[15,1,15,6],[16,1,16,7],[18,3,18,6],[19,3,19,7],[21,3,21,13],[22,3,22,7],[23,3,23,7],[26,3,26,6],[27,3,27,7],[29,3,29,13],[30,3,30,7],[13,1,13,13],[0,0,0,14],[2,3,2,13],[3,3,3,13],[5,3,5,13],[6,3,6,13],[8,1,8,13],[10,3,10,13]]}
["Core Capability: Physical Protective Measures"]
[]
[null,"THIRA Capability Target"]
[]
[]
[null,"Improvement Strategy"]
[]
[]
[null,"Mission Area Recommendations for improvement"]
[]
[null,"Protection"]
[]
[]
[null,"POETE Scores and Costs"]
[]
[null,"Make a selection from the drop down boxes for each POETE category.  Identify any gap that you have for each POETE in this core capability, include plans to reduce this gap. If applicable add a project and give a detailed description. Enter sustainment cost and if there will be a new project cost. If applicable enter the projected sustainment cost for the new project.",null,null,null,null,null,"Score",null,"Sustainment cost",null,"New Project cost",null,"Projected sustainment cost for new projects"]
[]
[]
[null,"Planning",null,null,null,null,null,{"$f":"INDEX(list!$A$1:$B$7,MATCH(Physical_Protective_Measures!D19,Planning,0),2)","v":{"$error":"#N/A"}}]
[]
[]
[null,"Gap Description"]
[null,"ADD Project",null,null,null,null,null,null,null," "]
[null,"ADD Project",null,null,null,null,null,null,null," "]
[]
[]
[null,"Organization",null,null,null,null,null,{"$f":"INDEX(list!$A$9:$B$15,MATCH(Physical_Protective_Measures!D27,Organization,0),2)","v":{"$error":"#N/A"}},null," "]
[]
[]
[null,"Gap Description",null," "]
[null,"ADD Project"]
[null,"ADD Project",null,null,null,null,null,null,null," "]
[]
[]
[null,"Equipment",null,null,null,null,null,{"$f":"INDEX(list!$A$17:$B$23,MATCH(Physical_Protective_Measures!D35,Equipment,0),2)","v":{"$error":"#N/A"}}]
[]
[]
[null,"Gap Description",null," "]
[null,"ADD Project",null,null,null,null,null,null,null," "]
[null,"ADD Project",null,null,null,null,null,null,null," "]
[]
[]
[null,"Training",null,null,null,null,null,{"$f":"INDEX(list!$A$26:$B$32,MATCH(Physical_Protective_Measures!D43,Training,0),2)","v":{"$error":"#N/A"}}]
[]
[]
[null,"Gap Description",null," "]
[null,"ADD Project",null,null,null,null,null,null,null," "]
[null,"ADD Project",null,null,null,null,null,null,null," "]
[]
[]
[null,"Exercise",null,null,null,null,null,{"$f":"INDEX(list!$A$34:$B$40,MATCH(Physical_Protective_Measures!D51,Exercises,0),2)","v":{"$error":"#N/A"}}]
[]
[]
[null,"Gap Description",null," "]
[null,"ADD Project",null,null,null,null,null,null,null," "]
[null,"ADD Project",null,null,null,null,null,null,null," "]
[]
[]
[null,"Mutual Aid Description"]
[]
[]
[null,"Journal Notes"]

{"sheet":"Risk_Mgt_Protect_Prog_Activity","index":14,"n_rows":62,"n_cols":14,"rows_kept":62,"cut":false,"hidden":false,"merged":[[62,3,62,7],[53,3,53,13],[54,3,54,7],[55,3,55,7],[58,3,58,13],[59,3,59,7],[61,3,61,13],[51,3,51,7],[34,3,34,6],[35,3,35,7],[37,3,37,13],[38,3,38,7],[39,3,39,7],[42,3,42,6],[43,3,43,7],[45,3,45,13],[46,3,46,7],[47,3,47,7],[50,3,50,6],[31,3,31,7],[15,1,15,6],[16,1,16,7],[18,3,18,6],[19,3,19,7],[21,3,21,13],[22,3,22,7],[23,3,23,7],[26,3,26,6],[27,3,27,7],[29,3,29,13],[30,3,30,7],[13,1,13,13],[0,0,0,14],[2,3,2,13],[3,3,3,13],[5,3,5,13],[6,3,6,13],[8,1,8,13],[10,3,10,13]]}
["Core Capability: Risk Management for Protection Programs and Activities"]
[]
[null,"THIRA Capability Target"]
[]
[]
[null,"Improvement Strategy"]
[]
[]
[null,"Mission Area Recommendations for improvement"]
[]
[null,"Protection"]
[]
[]
[null,"POETE Scores and Costs"]
[]
[null,"Make a selection from the drop down boxes for each POETE category.  Identify any gap that you have for each POETE in this core capability, include plans to reduce this gap. If applicable add a project and give a detailed description. Enter sustainment cost and if there will be a new project cost. If applicable enter the projected sustainment cost for the new project.",null,null,null,null,null,"Score",null,"Sustainment cost",null,"New Project cost",null,"Projected sustainment cost for new projects"]
[]
[]
[null,"Planning",null,null,null,null,null,{"$f":"INDEX(list!$A$1:$B$7,MATCH(Risk_Mgt_Protect_Prog_Activity!D19,Planning,0),2)","v":{"$error":"#N/A"}}]
[]
[]
[null,"Gap Description"]
[null,"ADD Project",null,null,null,null,null,null,null," "]
[null,"ADD Project",null,null,null,null,null,null,null," "]
[]
[]
[null,"Organization",null,null,null,null,null,{"$f":"INDEX(list!$A$9:$B$15,MATCH(Risk_Mgt_Protect_Prog_Activity!D27,Organization,0),2)","v":{"$error":"#N/A"}},null," "]
[]
[]
[null,"Gap Description",null," "]
[null,"ADD Project"]
[null,"ADD Project",null,null,null,null,null,null,null," "]
[]
[]
[null,"Equipment",null,null,null,null,null,{"$f":"INDEX(list!$A$17:$B$23,MATCH(Risk_Mgt_Protect_Prog_Activity!D35,Equipment,0),2)","v":{"$error":"#N/A"}}]
[]
[]
[null,"Gap Description",null," "]
[null,"ADD Project",null,null,null,null,null,null,null," "]
[null,"ADD Project",null,null,null,null,null,null,null," "]
[]
[]
[null,"Training",null,null,null,null,null,{"$f":"INDEX(list!$A$26:$B$32,MATCH(Risk_Mgt_Protect_Prog_Activity!D43,Training,0),2)","v":{"$error":"#N/A"}}]
[]
[]
[null,"Gap Description",null," "]
[null,"ADD Project",null,null,null,null,null,null,null," "]
[null,"ADD Project",null,null,null,null,null,null,null," "]
[]
[]
[null,"Exercise",null,null,null,null,null,{"$f":"INDEX(list!$A$34:$B$40,MATCH(Risk_Mgt_Protect_Prog_Activity!D51,Exercises,0),2)","v":{"$error":"#N/A"}}]
[]
[]
[null,"Gap Description",null," "]
[null,"ADD Project",null,null,null,null,null,null,null," "]
[null,"ADD Project",null,null,null,null,null,null,null," "]
[]
[]
[null,"Mutual Aid Description"]
[]
[]
[null,"Journal Notes"]

{"sheet":"Supply_Chain_Integrity_Security","index":15,"n_rows":62,"n_cols":14,"rows_kept":62,"cut":false,"hidden":false,"merged":[[62,3,62,7],[53,3,53,13],[54,3,54,7],[55,3,55,7],[58,3,58,13],[59,3,59,7],[61,3,61,13],[51,3,51,7],[34,3,34,6],[35,3,35,7],[37,3,37,13],[38,3,38,7],[39,3,39,7],[42,3,42,6],[43,3,43,7],[45,3,45,13],[46,3,46,7],[47,3,47,7],[50,3,50,6],[31,3,31,7],[15,1,15,6],[16,1,16,7],[18,3,18,6],[19,3,19,7],[21,3,21,13],[22,3,22,7],[23,3,23,7],[26,3,26,6],[27,3,27,7],[29,3,29,13],[30,3,30,7],[13,1,13,13],[0,0,0,14],[2,3,2,13],[3,3,3,13],[5,3,5,13],[6,3,6,13],[8,1,8,13],[10,3,10,13]]}
["Core Capability: Supply Chain Integrity and Security"]
[]
[null,"THIRA Capability Target"]
[]
[]
[null,"Improvement Strategy"]
[]
[]
[null,"Mission Area Recommendations for improvement"]
[]
[null,"Protection"]
[]
[]
[null,"POETE Scores and Costs"]
[]
[null,"Make a selection from the drop down boxes for each POETE category.  Identify any gap that you have for each POETE in this core capability, include plans to reduce this gap. If applicable add a project and give a detailed description. Enter sustainment cost and if there will be a new project cost. If applicable enter the projected sustainment cost for the new project.",null,null,null,null,null,"Score",null,"Sustainment cost",null,"New Project cost",null,"Projected sustainment cost for new projects"]
[]
[]
[null,"Planning",null,null,null,null,null,{"$f":"INDEX(list!$A$1:$B$7,MATCH(Supply_Chain_Integrity_Security!D19,Planning,0),2)","v":{"$error":"#N/A"}}]
[]
[]
[null,"Gap Description"]
[null,"ADD Project",null,null,null,null,null,null,null," "]
[null,"ADD Project",null,null,null,null,null,null,null," "]
[]
[]
[null,"Organization",null,null,null,null,null,{"$f":"INDEX(list!$A$9:$B$15,MATCH(Supply_Chain_Integrity_Security!D27,Organization,0),2)","v":{"$error":"#N/A"}},null," "]
[]
[]
[null,"Gap Description",null," "]
[null,"ADD Project"]
[null,"ADD Project",null,null,null,null,null,null,null," "]
[]
[]
[null,"Equipment",null,null,null,null,null,{"$f":"INDEX(list!$A$17:$B$23,MATCH(Supply_Chain_Integrity_Security!D35,Equipment,0),2)","v":{"$error":"#N/A"}}]
[]
[]
[null,"Gap Description",null," "]
[null,"ADD Project",null,null,null,null,null,null,null," "]
[null,"ADD Project",null,null,null,null,null,null,null," "]
[]
[]
[null,"Training",null,null,null,null,null,{"$f":"INDEX(list!$A$26:$B$32,MATCH(Supply_Chain_Integrity_Security!D43,Training,0),2)","v":{"$error":"#N/A"}}]
[]
[]
[null,"Gap Description",null," "]
[null,"ADD Project",null,null,null,null,null,null,null," "]
[null,"ADD Project",null,null,null,null,null,null,null," "]
[]
[]
[null,"Exercise",null,null,null,null,null,{"$f":"INDEX(list!$A$34:$B$40,MATCH(Supply_Chain_Integrity_Security!D51,Exercises,0),2)","v":{"$error":"#N/A"}}]
[]
[]
[null,"Gap Description",null," "]
[null,"ADD Project",null,null,null,null,null,null,null," "]
[null,"ADD Project",null,null,null,null,null,null,null," "]
[]
[]
[null,"Mutual Aid Description"]
[]
[]
[null,"Journal Notes"]

{"sheet":"Community_Resillience","index":16,"n_rows":62,"n_cols":14,"rows_kept":62,"cut":false,"hidden":false,"merged":[[62,3,62,7],[53,3,53,13],[54,3,54,7],[55,3,55,7],[58,3,58,13],[59,3,59,7],[61,3,61,13],[51,3,51,7],[34,3,34,6],[35,3,35,7],[37,3,37,13],[38,3,38,7],[39,3,39,7],[42,3,42,6],[43,3,43,7],[45,3,45,13],[46,3,46,7],[47,3,47,7],[50,3,50,6],[31,3,31,7],[15,1,15,6],[16,1,16,7],[18,3,18,6],[19,3,19,7],[21,3,21,13],[22,3,22,7],[23,3,23,7],[26,3,26,6],[27,3,27,7],[29,3,29,13],[30,3,30,7],[13,1,13,13],[0,0,0,14],[2,3,2,13],[3,3,3,13],[5,3,5,13],[6,3,6,13],[8,1,8,13],[10,3,10,13]]}
["Core Capability: Community Resillience"]
[]
[null,"THIRA Capability Target"]
[]
[]
[null,"Improvement Strategy"]
[]
[]
[null,"Mission Area Recommendations for improvement"]
[]
[null,"Mitigation"]
[]
[]
[null,"POETE Scores and Costs"]
[]
[null,"Make a selection from the drop down boxes for each POETE category.  Identify any gap that you have for each POETE in this core capability, include plans to reduce this gap. If applicable add a project and give a detailed description. Enter sustainment cost and if there will be a new project cost. If applicable enter the projected sustainment cost for the new project.",null,null,null,null,null,"Score",null,"Sustainment cost",null,"New Project cost",null,"Projected sustainment cost for new projects"]
[]
[]
[null,"Planning",null,null,null,null,null,{"$f":"INDEX(list!$A$1:$B$7,MATCH(Community_Resillience!D19,Planning,0),2)","v":{"$error":"#N/A"}}]
[]
[]
[null,"Gap Description"]
[null,"ADD Project",null,null,null,null,null,null,null," "]
[null,"ADD Project",null,null,null,null,null,null,null," "]
[]
[]
[null,"Organization",null,null,null,null,null,{"$f":"INDEX(list!$A$9:$B$15,MATCH(Community_Resillience!D27,Organization,0),2)","v":{"$error":"#N/A"}},null," "]
[]
[]
[null,"Gap Description",null," "]
[null,"ADD Project"]
[null,"ADD Project",null,null,null,null,null,null,null," "]
[]
[]
[null,"Equipment",null,null,null,null,null,{"$f":"INDEX(list!$A$17:$B$23,MATCH(Community_Resillience!D35,Equipment,0),2)","v":{"$error":"#N/A"}}]
[]
[]
[null,"Gap Description",null," "]
[null,"ADD Project",null,null,null,null,null,null,null," "]
[null,"ADD Project",null,null,null,null,null,null,null," "]
[]
[]
[null,"Training",null,null,null,null,null,{"$f":"INDEX(list!$A$26:$B$32,MATCH(Community_Resillience!D43,Training,0),2)","v":{"$error":"#N/A"}}]
[]
[]
[null,"Gap Description",null," "]
[null,"ADD Project",null,null,null,null,null,null,null," "]
[null,"ADD Project",null,null,null,null,null,null,null," "]
[]
[]
[null,"Exercise",null,null,null,null,null,{"$f":"INDEX(list!$A$34:$B$40,MATCH(Community_Resillience!D51,Exercises,0),2)","v":{"$error":"#N/A"}}]
[]
[]
[null,"Gap Description",null," "]
[null,"ADD Project",null,null,null,null,null,null,null," "]
[null,"ADD Project",null,null,null,null,null,null,null," "]
[]
[]
[null,"Mutual Aid Description"]
[]
[]
[null,"Journal Notes"]

{"sheet":"Longterm_Vulnerability","index":17,"n_rows":62,"n_cols":14,"rows_kept":62,"cut":false,"hidden":false,"merged":[[62,3,62,7],[53,3,53,13],[54,3,54,7],[55,3,55,7],[58,3,58,13],[59,3,59,7],[61,3,61,13],[51,3,51,7],[34,3,34,6],[35,3,35,7],[37,3,37,13],[38,3,38,7],[39,3,39,7],[42,3,42,6],[43,3,43,7],[45,3,45,13],[46,3,46,7],[47,3,47,7],[50,3,50,6],[31,3,31,7],[15,1,15,6],[16,1,16,7],[18,3,18,6],[19,3,19,7],[21,3,21,13],[22,3,22,7],[23,3,23,7],[26,3,26,6],[27,3,27,7],[29,3,29,13],[30,3,30,7],[13,1,13,13],[0,0,0,14],[2,3,2,13],[3,3,3,13],[5,3,5,13],[6,3,6,13],[8,1,8,13],[10,3,10,13]]}
["Core Capability: Long-term Vulnerability"]
[]
[null,"THIRA Capability Target"]
[]
[]
[null,"Improvement Strategy"]
[]
[]
[null,"Mission Area Recommendations for improvement"]
[]
[null,"Mitigation"]
[]
[]
[null,"POETE Scores and Costs"]
[]
[null,"Make a selection from the drop down boxes for each POETE category.  Identify any gap that you have for each POETE in this core capability, include plans to reduce this gap. If applicable add a project and give a detailed description. Enter sustainment cost and if there will be a new project cost. If applicable enter the projected sustainment cost for the new project.",null,null,null,null,null,"Score",null,"Sustainment cost",null,"New Project cost",null,"Projected sustainment cost for new projects"]
[]
[]
[null,"Planning",null,null,null,null,null,{"$f":"INDEX(list!$A$1:$B$7,MATCH(Longterm_Vulnerability!D19,Planning,0),2)","v":{"$error":"#N/A"}}]
[]
[]
[null,"Gap Description"]
[null,"ADD Project",null,null,null,null,null,null,null," "]
[null,"ADD Project",null,null,null,null,null,null,null," "]
[]
[]
[null,"Organization",null,null,null,null,null,{"$f":"INDEX(list!$A$9:$B$15,MATCH(Longterm_Vulnerability!D27,Organization,0),2)","v":{"$error":"#N/A"}},null," "]
[]
[]
[null,"Gap Description",null," "]
[null,"ADD Project"]
[null,"ADD Project",null,null,null,null,null,null,null," "]
[]
[]
[null,"Equipment",null,null,null,null,null,{"$f":"INDEX(list!$A$17:$B$23,MATCH(Longterm_Vulnerability!D35,Equipment,0),2)","v":{"$error":"#N/A"}}]
[]
[]
[null,"Gap Description",null," "]
[null,"ADD Project",null,null,null,null,null,null,null," "]
[null,"ADD Project",null,null,null,null,null,null,null," "]
[]
[]
[null,"Training",null,null,null,null,null,{"$f":"INDEX(list!$A$26:$B$32,MATCH(Longterm_Vulnerability!D43,Training,0),2)","v":{"$error":"#N/A"}}]
[]
[]
[null,"Gap Description",null," "]
[null,"ADD Project",null,null,null,null,null,null,null," "]
[null,"ADD Project",null,null,null,null,null,null,null," "]
[]
[]
[null,"Exercise",null,null,null,null,null,{"$f":"INDEX(list!$A$34:$B$40,MATCH(Longterm_Vulnerability!D51,Exercises,0),2)","v":{"$error":"#N/A"}}]
[]
[]
[null,"Gap Description",null," "]
[null,"ADD Project",null,null,null,null,null,null,null," "]
[null,"ADD Project",null,null,null,null,null,null,null," "]
[]
[]
[null,"Mutual Aid Description"]
[]
[]
[null,"Journal Notes"]

{"sheet":"Risk_Disaster_Resillience_Mgt","index":18,"n_rows":62,"n_cols":14,"rows_kept":62,"cut":false,"hidden":false,"merged":[[62,3,62,7],[53,3,53,13],[54,3,54,7],[55,3,55,7],[58,3,58,13],[59,3,59,7],[61,3,61,13],[51,3,51,7],[34,3,34,6],[35,3,35,7],[37,3,37,13],[38,3,38,7],[39,3,39,7],[42,3,42,6],[43,3,43,7],[45,3,45,13],[46,3,46,7],[47,3,47,7],[50,3,50,6],[31,3,31,7],[15,1,15,6],[16,1,16,7],[18,3,18,6],[19,3,19,7],[21,3,21,13],[22,3,22,7],[23,3,23,7],[26,3,26,6],[27,3,27,7],[29,3,29,13],[30,3,30,7],[13,1,13,13],[0,0,0,14],[2,3,2,13],[3,3,3,13],[5,3,5,13],[6,3,6,13],[8,1,8,13],[10,3,10,13]]}
["Core Capability: Risk and Disaster Resillience Management"]
[]
[null,"THIRA Capability Target"]
[]
[]
[null,"Improvement Strategy"]
[]
[]
[null,"Mission Area Recommendations for improvement"]
[]
[null,"Mitigation"]
[]
[]
[null,"POETE Scores and Costs"]
[]
[null,"Make a selection from the drop down boxes for each POETE category.  Identify any gap that you have for each POETE in this core capability, include plans to reduce this gap. If applicable add a project and give a detailed description. Enter sustainment cost and if there will be a new project cost. If applicable enter the projected sustainment cost for the new project.",null,null,null,null,null,"Score",null,"Sustainment cost",null,"New Project cost",null,"Projected sustainment cost for new projects"]
[]
[]
[null,"Planning",null,null,null,null,null,{"$f":"INDEX(list!$A$1:$B$7,MATCH(Risk_Disaster_Resillience_Mgt!D19,Planning,0),2)","v":{"$error":"#N/A"}}]
[]
[]
[null,"Gap Description"]
[null,"ADD Project",null,null,null,null,null,null,null," "]
[null,"ADD Project",null,null,null,null,null,null,null," "]
[]
[]
[null,"Organization",null,null,null,null,null,{"$f":"INDEX(list!$A$9:$B$15,MATCH(Risk_Disaster_Resillience_Mgt!D27,Organization,0),2)","v":{"$error":"#N/A"}},null," "]
[]
[]
[null,"Gap Description",null," "]
[null,"ADD Project"]
[null,"ADD Project",null,null,null,null,null,null,null," "]
[]
[]
[null,"Equipment",null,null,null,null,null,{"$f":"INDEX(list!$A$17:$B$23,MATCH(Risk_Disaster_Resillience_Mgt!D35,Equipment,0),2)","v":{"$error":"#N/A"}}]
[]
[]
[null,"Gap Description",null," "]
[null,"ADD Project",null,null,null,null,null,null,null," "]
[null,"ADD Project",null,null,null,null,null,null,null," "]
[]
[]
[null,"Training",null,null,null,null,null,{"$f":"INDEX(list!$A$26:$B$32,MATCH(Risk_Disaster_Resillience_Mgt!D43,Training,0),2)","v":{"$error":"#N/A"}}]
[]
[]
[null,"Gap Description",null," "]
[null,"ADD Project",null,null,null,null,null,null,null," "]
[null,"ADD Project",null,null,null,null,null,null,null," "]
[]
[]
[null,"Exercise",null,null,null,null,null,{"$f":"INDEX(list!$A$34:$B$40,MATCH(Risk_Disaster_Resillience_Mgt!D51,Exercises,0),2)","v":{"$error":"#N/A"}}]
[]
[]
[null,"Gap Description",null," "]
[null,"ADD Project",null,null,null,null,null,null,null," "]
[null,"ADD Project",null,null,null,null,null,null,null," "]
[]
[]
[null,"Mutual Aid Description"]
[]
[]
[null,"Journal Notes"]

{"sheet":"Threats_Hazard_Identification","index":19,"n_rows":62,"n_cols":14,"rows_kept":62,"cut":false,"hidden":false,"merged":[[62,3,62,7],[53,3,53,13],[54,3,54,7],[55,3,55,7],[58,3,58,13],[59,3,59,7],[61,3,61,13],[51,3,51,7],[34,3,34,6],[35,3,35,7],[37,3,37,13],[38,3,38,7],[39,3,39,7],[42,3,42,6],[43,3,43,7],[45,3,45,13],[46,3,46,7],[47,3,47,7],[50,3,50,6],[31,3,31,7],[15,1,15,6],[16,1,16,7],[18,3,18,6],[19,3,19,7],[21,3,21,13],[22,3,22,7],[23,3,23,7],[26,3,26,6],[27,3,27,7],[29,3,29,13],[30,3,30,7],[13,1,13,13],[0,0,0,14],[2,3,2,13],[3,3,3,13],[5,3,5,13],[6,3,6,13],[8,1,8,13],[10,3,10,13]]}
["Core Capability: Threats and Hazard Identification"]
[]
[null,"THIRA Capability Target"]
[]
[]
[null,"Improvement Strategy"]
[]
[]
[null,"Mission Area Recommendations for improvement"]
[]
[null,"Mitigation"]
[]
[]
[null,"POETE Scores and Costs"]
[]
[null,"Make a selection from the drop down boxes for each POETE category.  Identify any gap that you have for each POETE in this core capability, include plans to reduce this gap. If applicable add a project and give a detailed description. Enter sustainment cost and if there will be a new project cost. If applicable enter the projected sustainment cost for the new project.",null,null,null,null,null,"Score",null,"Sustainment cost",null,"New Project cost",null,"Projected sustainment cost for new projects"]
[]
[]
[null,"Planning",null,null,null,null,null,{"$f":"INDEX(list!$A$1:$B$7,MATCH(Threats_Hazard_Identification!D19,Planning,0),2)","v":{"$error":"#N/A"}}]
[]
[]
[null,"Gap Description"]
[null,"ADD Project",null,null,null,null,null,null,null," "]
[null,"ADD Project",null,null,null,null,null,null,null," "]
[]
[]
[null,"Organization",null,null,null,null,null,{"$f":"INDEX(list!$A$9:$B$15,MATCH(Threats_Hazard_Identification!D27,Organization,0),2)","v":{"$error":"#N/A"}},null," "]
[]
[]
[null,"Gap Description",null," "]
[null,"ADD Project"]
[null,"ADD Project",null,null,null,null,null,null,null," "]
[]
[]
[null,"Equipment",null,null,null,null,null,{"$f":"INDEX(list!$A$17:$B$23,MATCH(Threats_Hazard_Identification!D35,Equipment,0),2)","v":{"$error":"#N/A"}}]
[]
[]
[null,"Gap Description",null," "]
[null,"ADD Project",null,null,null,null,null,null,null," "]
[null,"ADD Project",null,null,null,null,null,null,null," "]
[]
[]
[null,"Training",null,null,null,null,null,{"$f":"INDEX(list!$A$26:$B$32,MATCH(Threats_Hazard_Identification!D43,Training,0),2)","v":{"$error":"#N/A"}}]
[]
[]
[null,"Gap Description",null," "]
[null,"ADD Project",null,null,null,null,null,null,null," "]
[null,"ADD Project",null,null,null,null,null,null,null," "]
[]
[]
[null,"Exercise",null,null,null,null,null,{"$f":"INDEX(list!$A$34:$B$40,MATCH(Threats_Hazard_Identification!D51,Exercises,0),2)","v":{"$error":"#N/A"}}]
[]
[]
[null,"Gap Description",null," "]
[null,"ADD Project",null,null,null,null,null,null,null," "]
[null,"ADD Project",null,null,null,null,null,null,null," "]
[]
[]
[null,"Mutual Aid Description"]
[]
[]
[null,"Journal Notes"]

{"sheet":"Critical_Transportation","index":20,"n_rows":62,"n_cols":14,"rows_kept":62,"cut":false,"hidden":false,"merged":[[62,3,62,7],[53,3,53,13],[54,3,54,7],[55,3,55,7],[58,3,58,13],[59,3,59,7],[61,3,61,13],[51,3,51,7],[34,3,34,6],[35,3,35,7],[37,3,37,13],[38,3,38,7],[39,3,39,7],[42,3,42,6],[43,3,43,7],[45,3,45,13],[46,3,46,7],[47,3,47,7],[50,3,50,6],[31,3,31,7],[15,1,15,6],[16,1,16,7],[18,3,18,6],[19,3,19,7],[21,3,21,13],[22,3,22,7],[23,3,23,7],[26,3,26,6],[27,3,27,7],[29,3,29,13],[30,3,30,7],[13,1,13,13],[0,0,0,14],[2,3,2,13],[3,3,3,13],[5,3,5,13],[6,3,6,13],[8,1,8,13],[10,3,10,13]]}
["Core Capability: Critical Transportation"]
[]
[null,"THIRA Capability Target"]
[]
[]
[null,"Improvement Strategy"]
[]
[]
[null,"Mission Area Recommendations for improvement"]
[]
[null,"Response"]
[]
[]
[null,"POETE Scores and Costs"]
[]
[null,"Make a selection from the drop down boxes for each POETE category.  Identify any gap that you have for each POETE in this core capability, include plans to reduce this gap. If applicable add a project and give a detailed description. Enter sustainment cost and if there will be a new project cost. If applicable enter the projected sustainment cost for the new project.",null,null,null,null,null,"Score",null,"Sustainment cost",null,"New Project cost",null,"Projected sustainment cost for new projects"]
[]
[]
[null,"Planning",null,null,null,null,null,{"$f":"INDEX(list!$A$1:$B$7,MATCH(Critical_Transportation!D19,Planning,0),2)","v":{"$error":"#N/A"}}]
[]
[]
[null,"Gap Description"]
[null,"ADD Project",null,null,null,null,null,null,null," "]
[null,"ADD Project",null,null,null,null,null,null,null," "]
[]
[]
[null,"Organization",null,null,null,null,null,{"$f":"INDEX(list!$A$9:$B$15,MATCH(Critical_Transportation!D27,Organization,0),2)","v":{"$error":"#N/A"}},null," "]
[]
[]
[null,"Gap Description",null," "]
[null,"ADD Project"]
[null,"ADD Project",null,null,null,null,null,null,null," "]
[]
[]
[null,"Equipment",null,null,null,null,null,{"$f":"INDEX(list!$A$17:$B$23,MATCH(Critical_Transportation!D35,Equipment,0),2)","v":{"$error":"#N/A"}}]
[]
[]
[null,"Gap Description",null," "]
[null,"ADD Project",null,null,null,null,null,null,null," "]
[null,"ADD Project",null,null,null,null,null,null,null," "]
[]
[]
[null,"Training",null,null,null,null,null,{"$f":"INDEX(list!$A$26:$B$32,MATCH(Critical_Transportation!D43,Training,0),2)","v":{"$error":"#N/A"}}]
[]
[]
[null,"Gap Description",null," "]
[null,"ADD Project",null,null,null,null,null,null,null," "]
[null,"ADD Project",null,null,null,null,null,null,null," "]
[]
[]
[null,"Exercise",null,null,null,null,null,{"$f":"INDEX(list!$A$34:$B$40,MATCH(Critical_Transportation!D51,Exercises,0),2)","v":{"$error":"#N/A"}}]
[]
[]
[null,"Gap Description",null," "]
[null,"ADD Project",null,null,null,null,null,null,null," "]
[null,"ADD Project",null,null,null,null,null,null,null," "]
[]
[]
[null,"Mutual Aid Description"]
[]
[]
[null,"Journal Notes"]

{"sheet":"Environment_ResponseHealth_Safe","index":21,"n_rows":62,"n_cols":14,"rows_kept":62,"cut":false,"hidden":false,"merged":[[62,3,62,7],[53,3,53,13],[54,3,54,7],[55,3,55,7],[58,3,58,13],[59,3,59,7],[61,3,61,13],[51,3,51,7],[34,3,34,6],[35,3,35,7],[37,3,37,13],[38,3,38,7],[39,3,39,7],[42,3,42,6],[43,3,43,7],[45,3,45,13],[46,3,46,7],[47,3,47,7],[50,3,50,6],[31,3,31,7],[15,1,15,6],[16,1,16,7],[18,3,18,6],[19,3,19,7],[21,3,21,13],[22,3,22,7],[23,3,23,7],[26,3,26,6],[27,3,27,7],[29,3,29,13],[30,3,30,7],[13,1,13,13],[0,0,0,14],[2,3,2,13],[3,3,3,13],[5,3,5,13],[6,3,6,13],[8,1,8,13],[10,3,10,13]]}
["Core Capability: Environmental Response/Health and Safety"]
[]
[null,"THIRA Capability Target"]
[]
[]
[null,"Improvement Strategy"]
[]
[]
[null,"Mission Area Recommendations for improvement"]
[]
[null,"Response"]
[]
[]
[null,"POETE Scores and Costs"]
[]
[null,"Make a selection from the drop down boxes for each POETE category.  Identify any gap that you have for each POETE in this core capability, include plans to reduce this gap. If applicable add a project and give a detailed description. Enter sustainment cost and if there will be a new project cost. If applicable enter the projected sustainment cost for the new project.",null,null,null,null,null,"Score",null,"Sustainment cost",null,"New Project cost",null,"Projected sustainment cost for new projects"]
[]
[]
[null,"Planning",null,null,null,null,null,{"$f":"INDEX(list!$A$1:$B$7,MATCH(Environment_ResponseHealth_Safe!D19,Planning,0),2)","v":{"$error":"#N/A"}}]
[]
[]
[null,"Gap Description"]
[null,"ADD Project",null,null,null,null,null,null,null," "]
[null,"ADD Project",null,null,null,null,null,null,null," "]
[]
[]
[null,"Organization",null,null,null,null,null,{"$f":"INDEX(list!$A$9:$B$15,MATCH(Environment_ResponseHealth_Safe!D27,Organization,0),2)","v":{"$error":"#N/A"}},null," "]
[]
[]
[null,"Gap Description",null," "]
[null,"ADD Project"]
[null,"ADD Project",null,null,null,null,null,null,null," "]
[]
[]
[null,"Equipment",null,null,null,null,null,{"$f":"INDEX(list!$A$17:$B$23,MATCH(Environment_ResponseHealth_Safe!D35,Equipment,0),2)","v":{"$error":"#N/A"}}]
[]
[]
[null,"Gap Description",null," "]
[null,"ADD Project",null,null,null,null,null,null,null," "]
[null,"ADD Project",null,null,null,null,null,null,null," "]
[]
[]
[null,"Training",null,null,null,null,null,{"$f":"INDEX(list!$A$26:$B$32,MATCH(Environment_ResponseHealth_Safe!D43,Training,0),2)","v":{"$error":"#N/A"}}]
[]
[]
[null,"Gap Description",null," "]
[null,"ADD Project",null,null,null,null,null,null,null," "]
[null,"ADD Project",null,null,null,null,null,null,null," "]
[]
[]
[null,"Exercise",null,null,null,null,null,{"$f":"INDEX(list!$A$34:$B$40,MATCH(Environment_ResponseHealth_Safe!D51,Exercises,0),2)","v":{"$error":"#N/A"}}]
[]
[]
[null,"Gap Description",null," "]
[null,"ADD Project",null,null,null,null,null,null,null," "]
[null,"ADD Project",null,null,null,null,null,null,null," "]
[]
[]
[null,"Mutual Aid Description"]
[]
[]
[null,"Journal Notes"]

{"sheet":"Fatality_Management_Services","index":22,"n_rows":62,"n_cols":14,"rows_kept":62,"cut":false,"hidden":false,"merged":[[62,3,62,7],[53,3,53,13],[54,3,54,7],[55,3,55,7],[58,3,58,13],[59,3,59,7],[61,3,61,13],[51,3,51,7],[34,3,34,6],[35,3,35,7],[37,3,37,13],[38,3,38,7],[39,3,39,7],[42,3,42,6],[43,3,43,7],[45,3,45,13],[46,3,46,7],[47,3,47,7],[50,3,50,6],[31,3,31,7],[15,1,15,6],[16,1,16,7],[18,3,18,6],[19,3,19,7],[21,3,21,13],[22,3,22,7],[23,3,23,7],[26,3,26,6],[27,3,27,7],[29,3,29,13],[30,3,30,7],[13,1,13,13],[0,0,0,14],[2,3,2,13],[3,3,3,13],[5,3,5,13],[6,3,6,13],[8,1,8,13],[10,3,10,13]]}
["Core Capability: Fatality Management Services"]
[]
[null,"THIRA Capability Target"]
[]
[]
[null,"Improvement Strategy"]
[]
[]
[null,"Mission Area Recommendations for improvement"]
[]
[null,"Response"]
[]
[]
[null,"POETE Scores and Costs"]
[]
[null,"Make a selection from the drop down boxes for each POETE category.  Identify any gap that you have for each POETE in this core capability, include plans to reduce this gap. If applicable add a project and give a detailed description. Enter sustainment cost and if there will be a new project cost. If applicable enter the projected sustainment cost for the new project.",null,null,null,null,null,"Score",null,"Sustainment cost",null,"New Project cost",null,"Projected sustainment cost for new projects"]
[]
[]
[null,"Planning",null,null,null,null,null,{"$f":"INDEX(list!$A$1:$B$7,MATCH(Fatality_Management_Services!D19,Planning,0),2)","v":{"$error":"#N/A"}}]
[]
[]
[null,"Gap Description"]
[null,"ADD Project",null,null,null,null,null,null,null," "]
[null,"ADD Project",null,null,null,null,null,null,null," "]
[]
[]
[null,"Organization",null,null,null,null,null,{"$f":"INDEX(list!$A$9:$B$15,MATCH(Fatality_Management_Services!D27,Organization,0),2)","v":{"$error":"#N/A"}},null," "]
[]
[]
[null,"Gap Description",null," "]
[null,"ADD Project"]
[null,"ADD Project",null,null,null,null,null,null,null," "]
[]
[]
[null,"Equipment",null,null,null,null,null,{"$f":"INDEX(list!$A$17:$B$23,MATCH(Fatality_Management_Services!D35,Equipment,0),2)","v":{"$error":"#N/A"}}]
[]
[]
[null,"Gap Description",null," "]
[null,"ADD Project",null,null,null,null,null,null,null," "]
[null,"ADD Project",null,null,null,null,null,null,null," "]
[]
[]
[null,"Training",null,null,null,null,null,{"$f":"INDEX(list!$A$26:$B$32,MATCH(Fatality_Management_Services!D43,Training,0),2)","v":{"$error":"#N/A"}}]
[]
[]
[null,"Gap Description",null," "]
[null,"ADD Project",null,null,null,null,null,null,null," "]
[null,"ADD Project",null,null,null,null,null,null,null," "]
[]
[]
[null,"Exercise",null,null,null,null,null,{"$f":"INDEX(list!$A$34:$B$40,MATCH(Fatality_Management_Services!D51,Exercises,0),2)","v":{"$error":"#N/A"}}]
[]
[]
[null,"Gap Description",null," "]
[null,"ADD Project",null,null,null,null,null,null,null," "]
[null,"ADD Project",null,null,null,null,null,null,null," "]
[]
[]
[null,"Mutual Aid Description"]
[]
[]
[null,"Journal Notes"]

{"sheet":"Mass_Care_Services","index":23,"n_rows":62,"n_cols":14,"rows_kept":62,"cut":false,"hidden":false,"merged":[[62,3,62,7],[53,3,53,13],[54,3,54,7],[55,3,55,7],[58,3,58,13],[59,3,59,7],[61,3,61,13],[51,3,51,7],[34,3,34,6],[35,3,35,7],[37,3,37,13],[38,3,38,7],[39,3,39,7],[42,3,42,6],[43,3,43,7],[45,3,45,13],[46,3,46,7],[47,3,47,7],[50,3,50,6],[31,3,31,7],[15,1,15,6],[16,1,16,7],[18,3,18,6],[19,3,19,7],[21,3,21,13],[22,3,22,7],[23,3,23,7],[26,3,26,6],[27,3,27,7],[29,3,29,13],[30,3,30,7],[13,1,13,13],[0,0,0,14],[2,3,2,13],[3,3,3,13],[5,3,5,13],[6,3,6,13],[8,1,8,13],[10,3,10,13]]}
["Core Capability: Mass Care Services"]
[]
[null,"THIRA Capability Target"]
[]
[]
[null,"Improvement Strategy"]
[]
[]
[null,"Mission Area Recommendations for improvement"]
[]
[null,"Response"]
[]
[]
[null,"POETE Scores and Costs"]
[]
[null,"Make a selection from the drop down boxes for each POETE category.  Identify any gap that you have for each POETE in this core capability, include plans to reduce this gap. If applicable add a project and give a detailed description. Enter sustainment cost and if there will be a new project cost. If applicable enter the projected sustainment cost for the new project.",null,null,null,null,null,"Score",null,"Sustainment cost",null,"New Project cost",null,"Projected sustainment cost for new projects"]
[]
[]
[null,"Planning",null,null,null,null,null,{"$f":"INDEX(list!$A$1:$B$7,MATCH(Mass_Care_Services!D19,Planning,0),2)","v":{"$error":"#N/A"}}]
[]
[]
[null,"Gap Description"]
[null,"ADD Project",null,null,null,null,null,null,null," "]
[null,"ADD Project",null,null,null,null,null,null,null," "]
[]
[]
[null,"Organization",null,null,null,null,null,{"$f":"INDEX(list!$A$9:$B$15,MATCH(Mass_Care_Services!D27,Organization,0),2)","v":{"$error":"#N/A"}},null," "]
[]
[]
[null,"Gap Description",null," "]
[null,"ADD Project"]
[null,"ADD Project",null,null,null,null,null,null,null," "]
[]
[]
[null,"Equipment",null,null,null,null,null,{"$f":"INDEX(list!$A$17:$B$23,MATCH(Mass_Care_Services!D35,Equipment,0),2)","v":{"$error":"#N/A"}}]
[]
[]
[null,"Gap Description",null," "]
[null,"ADD Project",null,null,null,null,null,null,null," "]
[null,"ADD Project",null,null,null,null,null,null,null," "]
[]
[]
[null,"Training",null,null,null,null,null,{"$f":"INDEX(list!$A$26:$B$32,MATCH(Mass_Care_Services!D43,Training,0),2)","v":{"$error":"#N/A"}}]
[]
[]
[null,"Gap Description",null," "]
[null,"ADD Project",null,null,null,null,null,null,null," "]
[null,"ADD Project",null,null,null,null,null,null,null," "]
[]
[]
[null,"Exercise",null,null,null,null,null,{"$f":"INDEX(list!$A$34:$B$40,MATCH(Mass_Care_Services!D51,Exercises,0),2)","v":{"$error":"#N/A"}}]
[]
[]
[null,"Gap Description",null," "]
[null,"ADD Project",null,null,null,null,null,null,null," "]
[null,"ADD Project",null,null,null,null,null,null,null," "]
[]
[]
[null,"Mutual Aid Description"]
[]
[]
[null,"Journal Notes"]

{"sheet":"Mass_Search_Rescue_Operations","index":24,"n_rows":62,"n_cols":14,"rows_kept":62,"cut":false,"hidden":false,"merged":[[62,3,62,7],[53,3,53,13],[54,3,54,7],[55,3,55,7],[58,3,58,13],[59,3,59,7],[61,3,61,13],[51,3,51,7],[34,3,34,6],[35,3,35,7],[37,3,37,13],[38,3,38,7],[39,3,39,7],[42,3,42,6],[43,3,43,7],[45,3,45,13],[46,3,46,7],[47,3,47,7],[50,3,50,6],[31,3,31,7],[15,1,15,6],[16,1,16,7],[18,3,18,6],[19,3,19,7],[21,3,21,13],[22,3,22,7],[23,3,23,7],[26,3,26,6],[27,3,27,7],[29,3,29,13],[30,3,30,7],[13,1,13,13],[0,0,0,14],[2,3,2,13],[3,3,3,13],[5,3,5,13],[6,3,6,13],[8,1,8,13],[10,3,10,13]]}
["Core Capability: Mass Search and Rescue Operations"]
[]
[null,"THIRA Capability Target"]
[]
[]
[null,"Improvement Strategy"]
[]
[]
[null,"Mission Area Recommendations for improvement"]
[]
[null,"Response"]
[]
[]
[null,"POETE Scores and Costs"]
[]
[null,"Make a selection from the drop down boxes for each POETE category.  Identify any gap that you have for each POETE in this core capability, include plans to reduce this gap. If applicable add a project and give a detailed description. Enter sustainment cost and if there will be a new project cost. If applicable enter the projected sustainment cost for the new project.",null,null,null,null,null,"Score",null,"Sustainment cost",null,"New Project cost",null,"Projected sustainment cost for new projects"]
[]
[]
[null,"Planning",null,null,null,null,null,{"$f":"INDEX(list!$A$1:$B$7,MATCH(Mass_Search_Rescue_Operations!D19,Planning,0),2)","v":{"$error":"#N/A"}}]
[]
[]
[null,"Gap Description"]
[null,"ADD Project",null,null,null,null,null,null,null," "]
[null,"ADD Project",null,null,null,null,null,null,null," "]
[]
[]
[null,"Organization",null,null,null,null,null,{"$f":"INDEX(list!$A$9:$B$15,MATCH(Mass_Search_Rescue_Operations!D27,Organization,0),2)","v":{"$error":"#N/A"}},null," "]
[]
[]
[null,"Gap Description",null," "]
[null,"ADD Project"]
[null,"ADD Project",null,null,null,null,null,null,null," "]
[]
[]
[null,"Equipment",null,null,null,null,null,{"$f":"INDEX(list!$A$17:$B$23,MATCH(Mass_Search_Rescue_Operations!D35,Equipment,0),2)","v":{"$error":"#N/A"}}]
[]
[]
[null,"Gap Description",null," "]
[null,"ADD Project",null,null,null,null,null,null,null," "]
[null,"ADD Project",null,null,null,null,null,null,null," "]
[]
[]
[null,"Training",null,null,null,null,null,{"$f":"INDEX(list!$A$26:$B$32,MATCH(Mass_Search_Rescue_Operations!D43,Training,0),2)","v":{"$error":"#N/A"}}]
[]
[]
[null,"Gap Description",null," "]
[null,"ADD Project",null,null,null,null,null,null,null," "]
[null,"ADD Project",null,null,null,null,null,null,null," "]
[]
[]
[null,"Exercise",null,null,null,null,null,{"$f":"INDEX(list!$A$34:$B$40,MATCH(Mass_Search_Rescue_Operations!D51,Exercises,0),2)","v":{"$error":"#N/A"}}]
[]
[]
[null,"Gap Description",null," "]
[null,"ADD Project",null,null,null,null,null,null,null," "]
[null,"ADD Project",null,null,null,null,null,null,null," "]
[]
[]
[null,"Mutual Aid Description"]
[]
[]
[null,"Journal Notes"]

{"sheet":"Onscene_Security_Protection","index":25,"n_rows":62,"n_cols":14,"rows_kept":62,"cut":false,"hidden":false,"merged":[[62,3,62,7],[53,3,53,13],[54,3,54,7],[55,3,55,7],[58,3,58,13],[59,3,59,7],[61,3,61,13],[51,3,51,7],[34,3,34,6],[35,3,35,7],[37,3,37,13],[38,3,38,7],[39,3,39,7],[42,3,42,6],[43,3,43,7],[45,3,45,13],[46,3,46,7],[47,3,47,7],[50,3,50,6],[31,3,31,7],[15,1,15,6],[16,1,16,7],[18,3,18,6],[19,3,19,7],[21,3,21,13],[22,3,22,7],[23,3,23,7],[26,3,26,6],[27,3,27,7],[29,3,29,13],[30,3,30,7],[13,1,13,13],[0,0,0,14],[2,3,2,13],[3,3,3,13],[5,3,5,13],[6,3,6,13],[8,1,8,13],[10,3,10,13]]}
["Core Capability: On-scene Security and Protection"]
[]
[null,"THIRA Capability Target"]
[]
[]
[null,"Improvement Strategy"]
[]
[]
[null,"Mission Area Recommendations for improvement"]
[]
[null,"Response"]
[]
[]
[null,"POETE Scores and Costs"]
[]
[null,"Make a selection from the drop down boxes for each POETE category.  Identify any gap that you have for each POETE in this core capability, include plans to reduce this gap. If applicable add a project and give a detailed description. Enter sustainment cost and if there will be a new project cost. If applicable enter the projected sustainment cost for the new project.",null,null,null,null,null,"Score",null,"Sustainment cost",null,"New Project cost",null,"Projected sustainment cost for new projects"]
[]
[]
[null,"Planning",null,null,null,null,null,{"$f":"INDEX(list!$A$1:$B$7,MATCH(Onscene_Security_Protection!D19,Planning,0),2)","v":{"$error":"#N/A"}}]
[]
[]
[null,"Gap Description"]
[null,"ADD Project",null,null,null,null,null,null,null," "]
[null,"ADD Project",null,null,null,null,null,null,null," "]
[]
[]
[null,"Organization",null,null,null,null,null,{"$f":"INDEX(list!$A$9:$B$15,MATCH(Onscene_Security_Protection!D27,Organization,0),2)","v":{"$error":"#N/A"}},null," "]
[]
[]
[null,"Gap Description",null," "]
[null,"ADD Project"]
[null,"ADD Project",null,null,null,null,null,null,null," "]
[]
[]
[null,"Equipment",null,null,null,null,null,{"$f":"INDEX(list!$A$17:$B$23,MATCH(Onscene_Security_Protection!D35,Equipment,0),2)","v":{"$error":"#N/A"}}]
[]
[]
[null,"Gap Description",null," "]
[null,"ADD Project",null,null,null,null,null,null,null," "]
[null,"ADD Project",null,null,null,null,null,null,null," "]
[]
[]
[null,"Training",null,null,null,null,null,{"$f":"INDEX(list!$A$26:$B$32,MATCH(Onscene_Security_Protection!D43,Training,0),2)","v":{"$error":"#N/A"}}]
[]
[]
[null,"Gap Description",null," "]
[null,"ADD Project",null,null,null,null,null,null,null," "]
[null,"ADD Project",null,null,null,null,null,null,null," "]
[]
[]
[null,"Exercise",null,null,null,null,null,{"$f":"INDEX(list!$A$34:$B$40,MATCH(Onscene_Security_Protection!D51,Exercises,0),2)","v":{"$error":"#N/A"}}]
[]
[]
[null,"Gap Description",null," "]
[null,"ADD Project",null,null,null,null,null,null,null," "]
[null,"ADD Project",null,null,null,null,null,null,null," "]
[]
[]
[null,"Mutual Aid Description"]
[]
[]
[null,"Journal Notes"]

{"sheet":"Operational_Communication","index":26,"n_rows":62,"n_cols":14,"rows_kept":62,"cut":false,"hidden":false,"merged":[[62,3,62,7],[53,3,53,13],[54,3,54,7],[55,3,55,7],[58,3,58,13],[59,3,59,7],[61,3,61,13],[51,3,51,7],[34,3,34,6],[35,3,35,7],[37,3,37,13],[38,3,38,7],[39,3,39,7],[42,3,42,6],[43,3,43,7],[45,3,45,13],[46,3,46,7],[47,3,47,7],[50,3,50,6],[31,3,31,7],[15,1,15,6],[16,1,16,7],[18,3,18,6],[19,3,19,7],[21,3,21,13],[22,3,22,7],[23,3,23,7],[26,3,26,6],[27,3,27,7],[29,3,29,13],[30,3,30,7],[13,1,13,13],[0,0,0,14],[2,3,2,13],[3,3,3,13],[5,3,5,13],[6,3,6,13],[8,1,8,13],[10,3,10,13]]}
["Core Capability: Operational Communication"]
[]
[null,"THIRA Capability Target"]
[]
[]
[null,"Improvement Strategy"]
[]
[]
[null,"Mission Area Recommendations for improvement"]
[]
[null,"Response"]
[]
[]
[null,"POETE Scores and Costs"]
[]
[null,"Make a selection from the drop down boxes for each POETE category.  Identify any gap that you have for each POETE in this core capability, include plans to reduce this gap. If applicable add a project and give a detailed description. Enter sustainment cost and if there will be a new project cost. If applicable enter the projected sustainment cost for the new project.",null,null,null,null,null,"Score",null,"Sustainment cost",null,"New Project cost",null,"Projected sustainment cost for new projects"]
[]
[]
[null,"Planning",null,null,null,null,null,{"$f":"INDEX(list!$A$1:$B$7,MATCH(Operational_Communication!D19,Planning,0),2)","v":{"$error":"#N/A"}}]
[]
[]
[null,"Gap Description"]
[null,"ADD Project",null,null,null,null,null,null,null," "]
[null,"ADD Project",null,null,null,null,null,null,null," "]
[]
[]
[null,"Organization",null,null,null,null,null,{"$f":"INDEX(list!$A$9:$B$15,MATCH(Operational_Coordination!D27,Organization,0),2)","v":{"$error":"#N/A"}},null," "]
[]
[]
[null,"Gap Description",null," "]
[null,"ADD Project"]
[null,"ADD Project",null,null,null,null,null,null,null," "]
[]
[]
[null,"Equipment",null,null,null,null,null,{"$f":"INDEX(list!$A$17:$B$23,MATCH(Operational_Coordination!D35,Equipment,0),2)","v":{"$error":"#N/A"}}]
[]
[]
[null,"Gap Description",null," "]
[null,"ADD Project",null,null,null,null,null,null,null," "]
[null,"ADD Project",null,null,null,null,null,null,null," "]
[]
[]
[null,"Training",null,null,null,null,null,{"$f":"INDEX(list!$A$26:$B$32,MATCH(Operational_Coordination!D43,Training,0),2)","v":{"$error":"#N/A"}}]
[]
[]
[null,"Gap Description",null," "]
[null,"ADD Project",null,null,null,null,null,null,null," "]
[null,"ADD Project",null,null,null,null,null,null,null," "]
[]
[]
[null,"Exercise",null,null,null,null,null,{"$f":"INDEX(list!$A$34:$B$40,MATCH(Operational_Communication!D51,Exercises,0),2)","v":{"$error":"#N/A"}}]
[]
[]
[null,"Gap Description",null," "]
[null,"ADD Project",null,null,null,null,null,null,null," "]
[null,"ADD Project",null,null,null,null,null,null,null," "]
[]
[]
[null,"Mutual Aid Description"]
[]
[]
[null,"Journal Notes"]

{"sheet":"Public_Health_Medical_Services","index":27,"n_rows":62,"n_cols":14,"rows_kept":62,"cut":false,"hidden":false,"merged":[[62,3,62,7],[53,3,53,13],[54,3,54,7],[55,3,55,7],[58,3,58,13],[59,3,59,7],[61,3,61,13],[51,3,51,7],[34,3,34,6],[35,3,35,7],[37,3,37,13],[38,3,38,7],[39,3,39,7],[42,3,42,6],[43,3,43,7],[45,3,45,13],[46,3,46,7],[47,3,47,7],[50,3,50,6],[31,3,31,7],[15,1,15,6],[16,1,16,7],[18,3,18,6],[19,3,19,7],[21,3,21,13],[22,3,22,7],[23,3,23,7],[26,3,26,6],[27,3,27,7],[29,3,29,13],[30,3,30,7],[13,1,13,13],[0,0,0,14],[2,3,2,13],[3,3,3,13],[5,3,5,13],[6,3,6,13],[8,1,8,13],[10,3,10,13]]}
["Core Capability: Public Health and Medical Services"]
[]
[null,"THIRA Capability Target"]
[]
[]
[null,"Improvement Strategy"]
[]
[]
[null,"Mission Area Recommendations for improvement"]
[]
[null,"Response"]
[]
[]
[null,"POETE Scores and Costs"]
[]
[null,"Make a selection from the drop down boxes for each POETE category.  Identify any gap that you have for each POETE in this core capability, include plans to reduce this gap. If applicable add a project and give a detailed description. Enter sustainment cost and if there will be a new project cost. If applicable enter the projected sustainment cost for the new project.",null,null,null,null,null,"Score",null,"Sustainment cost",null,"New Project cost",null,"Projected sustainment cost for new projects"]
[]
[]
[null,"Planning",null,null,null,null,null,{"$f":"INDEX(list!$A$1:$B$7,MATCH(Public_Health_Medical_Services!D19,Planning,0),2)","v":{"$error":"#N/A"}}]
[]
[]
[null,"Gap Description"]
[null,"ADD Project",null,null,null,null,null,null,null," "]
[null,"ADD Project",null,null,null,null,null,null,null," "]
[]
[]
[null,"Organization",null,null,null,null,null,{"$f":"INDEX(list!$A$9:$B$15,MATCH(Public_Health_Medical_Services!D27,Organization,0),2)","v":{"$error":"#N/A"}},null," "]
[]
[]
[null,"Gap Description",null," "]
[null,"ADD Project"]
[null,"ADD Project",null,null,null,null,null,null,null," "]
[]
[]
[null,"Equipment",null,null,null,null,null,{"$f":"INDEX(list!$A$17:$B$23,MATCH(Public_Health_Medical_Services!D35,Equipment,0),2)","v":{"$error":"#N/A"}}]
[]
[]
[null,"Gap Description",null," "]
[null,"ADD Project",null,null,null,null,null,null,null," "]
[null,"ADD Project",null,null,null,null,null,null,null," "]
[]
[]
[null,"Training",null,null,null,null,null,{"$f":"INDEX(list!$A$26:$B$32,MATCH(Public_Health_Medical_Services!D43,Training,0),2)","v":{"$error":"#N/A"}}]
[]
[]
[null,"Gap Description",null," "]
[null,"ADD Project",null,null,null,null,null,null,null," "]
[null,"ADD Project",null,null,null,null,null,null,null," "]
[]
[]
[null,"Exercise",null,null,null,null,null,{"$f":"INDEX(list!$A$34:$B$40,MATCH(Public_Health_Medical_Services!D51,Exercises,0),2)","v":{"$error":"#N/A"}}]
[]
[]
[null,"Gap Description",null," "]
[null,"ADD Project",null,null,null,null,null,null,null," "]
[null,"ADD Project",null,null,null,null,null,null,null," "]
[]
[]
[null,"Mutual Aid Description"]
[]
[]
[null,"Journal Notes"]

{"sheet":"PublicPrivate_ServicesResources","index":28,"n_rows":62,"n_cols":14,"rows_kept":62,"cut":false,"hidden":false,"merged":[[62,3,62,7],[53,3,53,13],[54,3,54,7],[55,3,55,7],[58,3,58,13],[59,3,59,7],[61,3,61,13],[51,3,51,7],[34,3,34,6],[35,3,35,7],[37,3,37,13],[38,3,38,7],[39,3,39,7],[42,3,42,6],[43,3,43,7],[45,3,45,13],[46,3,46,7],[47,3,47,7],[50,3,50,6],[31,3,31,7],[15,1,15,6],[16,1,16,7],[18,3,18,6],[19,3,19,7],[21,3,21,13],[22,3,22,7],[23,3,23,7],[26,3,26,6],[27,3,27,7],[29,3,29,13],[30,3,30,7],[13,1,13,13],[0,0,0,14],[2,3,2,13],[3,3,3,13],[5,3,5,13],[6,3,6,13],[8,1,8,13],[10,3,10,13]]}
["Core Capability: Public and Private Services and Resources"]
[]
[null,"THIRA Capability Target"]
[]
[]
[null,"Improvement Strategy"]
[]
[]
[null,"Mission Area Recommendations for improvement"]
[]
[null,"Response"]
[]
[]
[null,"POETE Scores and Costs"]
[]
[null,"Make a selection from the drop down boxes for each POETE category.  Identify any gap that you have for each POETE in this core capability, include plans to reduce this gap. If applicable add a project and give a detailed description. Enter sustainment cost and if there will be a new project cost. If applicable enter the projected sustainment cost for the new project.",null,null,null,null,null,"Score",null,"Sustainment cost",null,"New Project cost",null,"Projected sustainment cost for new projects"]
[]
[]
[null,"Planning",null,null,null,null,null,{"$f":"INDEX(list!$A$1:$B$7,MATCH(PublicPrivate_ServicesResources!D19,Planning,0),2)","v":{"$error":"#N/A"}}]
[]
[]
[null,"Gap Description"]
[null,"ADD Project",null,null,null,null,null,null,null," "]
[null,"ADD Project",null,null,null,null,null,null,null," "]
[]
[]
[null,"Organization",null,null,null,null,null,{"$f":"INDEX(list!$A$9:$B$15,MATCH(PublicPrivate_ServicesResources!D27,Organization,0),2)","v":{"$error":"#N/A"}},null," "]
[]
[]
[null,"Gap Description",null," "]
[null,"ADD Project"]
[null,"ADD Project",null,null,null,null,null,null,null," "]
[]
[]
[null,"Equipment",null,null,null,null,null,{"$f":"INDEX(list!$A$17:$B$23,MATCH(PublicPrivate_ServicesResources!D35,Equipment,0),2)","v":{"$error":"#N/A"}}]
[]
[]
[null,"Gap Description",null," "]
[null,"ADD Project",null,null,null,null,null,null,null," "]
[null,"ADD Project",null,null,null,null,null,null,null," "]
[]
[]
[null,"Training",null,null,null,null,null,{"$f":"INDEX(list!$A$26:$B$32,MATCH(PublicPrivate_ServicesResources!D43,Training,0),2)","v":{"$error":"#N/A"}}]
[]
[]
[null,"Gap Description",null," "]
[null,"ADD Project",null,null,null,null,null,null,null," "]
[null,"ADD Project",null,null,null,null,null,null,null," "]
[]
[]
[null,"Exercise",null,null,null,null,null,{"$f":"INDEX(list!$A$34:$B$40,MATCH(PublicPrivate_ServicesResources!D51,Exercises,0),2)","v":{"$error":"#N/A"}}]
[]
[]
[null,"Gap Description",null," "]
[null,"ADD Project",null,null,null,null,null,null,null," "]
[null,"ADD Project",null,null,null,null,null,null,null," "]
[]
[]
[null,"Mutual Aid Description"]
[]
[]
[null,"Journal Notes"]

{"sheet":"Situational_Assessment","index":29,"n_rows":62,"n_cols":14,"rows_kept":62,"cut":false,"hidden":false,"merged":[[62,3,62,7],[53,3,53,13],[54,3,54,7],[55,3,55,7],[58,3,58,13],[59,3,59,7],[61,3,61,13],[51,3,51,7],[34,3,34,6],[35,3,35,7],[37,3,37,13],[38,3,38,7],[39,3,39,7],[42,3,42,6],[43,3,43,7],[45,3,45,13],[46,3,46,7],[47,3,47,7],[50,3,50,6],[31,3,31,7],[15,1,15,6],[16,1,16,7],[18,3,18,6],[19,3,19,7],[21,3,21,13],[22,3,22,7],[23,3,23,7],[26,3,26,6],[27,3,27,7],[29,3,29,13],[30,3,30,7],[13,1,13,13],[0,0,0,14],[2,3,2,13],[3,3,3,13],[5,3,5,13],[6,3,6,13],[8,1,8,13],[10,3,10,13]]}
["Core Capability: Situational Assessment"]
[]
[null,"THIRA Capability Target"]
[]
[]
[null,"Improvement Strategy"]
[]
[]
[null,"Mission Area Recommendations for improvement"]
[]
[null,"Response"]
[]
[]
[null,"POETE Scores and Costs"]
[]
[null,"Make a selection from the drop down boxes for each POETE category.  Identify any gap that you have for each POETE in this core capability, include plans to reduce this gap. If applicable add a project and give a detailed description. Enter sustainment cost and if there will be a new project cost. If applicable enter the projected sustainment cost for the new project.",null,null,null,null,null,"Score",null,"Sustainment cost",null,"New Project cost",null,"Projected sustainment cost for new projects"]
[]
[]
[null,"Planning",null,null,null,null,null,{"$f":"INDEX(list!$A$1:$B$7,MATCH(Situational_Assessment!D19,Planning,0),2)","v":{"$error":"#N/A"}}]
[]
[]
[null,"Gap Description"]
[null,"ADD Project",null,null,null,null,null,null,null," "]
[null,"ADD Project",null,null,null,null,null,null,null," "]
[]
[]
[null,"Organization",null,null,null,null,null,{"$f":"INDEX(list!$A$9:$B$15,MATCH(Situational_Assessment!D27,Organization,0),2)","v":{"$error":"#N/A"}},null," "]
[]
[]
[null,"Gap Description",null," "]
[null,"ADD Project"]
[null,"ADD Project",null,null,null,null,null,null,null," "]
[]
[]
[null,"Equipment",null,null,null,null,null,{"$f":"INDEX(list!$A$17:$B$23,MATCH(Situational_Assessment!D35,Equipment,0),2)","v":{"$error":"#N/A"}}]
[]
[]
[null,"Gap Description",null," "]
[null,"ADD Project",null,null,null,null,null,null,null," "]
[null,"ADD Project",null,null,null,null,null,null,null," "]
[]
[]
[null,"Training",null,null,null,null,null,{"$f":"INDEX(list!$A$26:$B$32,MATCH(Situational_Assessment!D43,Training,0),2)","v":{"$error":"#N/A"}}]
[]
[]
[null,"Gap Description",null," "]
[null,"ADD Project",null,null,null,null,null,null,null," "]
[null,"ADD Project",null,null,null,null,null,null,null," "]
[]
[]
[null,"Exercise",null,null,null,null,null,{"$f":"INDEX(list!$A$34:$B$40,MATCH(Situational_Assessment!D51,Exercises,0),2)","v":{"$error":"#N/A"}}]
[]
[]
[null,"Gap Description",null," "]
[null,"ADD Project",null,null,null,null,null,null,null," "]
[null,"ADD Project",null,null,null,null,null,null,null," "]
[]
[]
[null,"Mutual Aid Description"]
[]
[]
[null,"Journal Notes"]

{"sheet":"Infrastructure_Systems","index":30,"n_rows":62,"n_cols":14,"rows_kept":62,"cut":false,"hidden":false,"merged":[[62,3,62,7],[53,3,53,13],[54,3,54,7],[55,3,55,7],[58,3,58,13],[59,3,59,7],[61,3,61,13],[51,3,51,7],[34,3,34,6],[35,3,35,7],[37,3,37,13],[38,3,38,7],[39,3,39,7],[42,3,42,6],[43,3,43,7],[45,3,45,13],[46,3,46,7],[47,3,47,7],[50,3,50,6],[31,3,31,7],[15,1,15,6],[16,1,16,7],[18,3,18,6],[19,3,19,7],[21,3,21,13],[22,3,22,7],[23,3,23,7],[26,3,26,6],[27,3,27,7],[29,3,29,13],[30,3,30,7],[13,1,13,13],[0,0,0,14],[2,3,2,13],[3,3,3,13],[5,3,5,13],[6,3,6,13],[8,1,8,13],[10,3,10,13]]}
["Core Capability: Infrastructure Systems"]
[]
[null,"THIRA Capability Target"]
[]
[]
[null,"Improvement Strategy"]
[]
[]
[null,"Mission Area Recommendations for improvement"]
[]
[null,"Recovery"]
[]
[]
[null,"POETE Scores and Costs"]
[]
[null,"Make a selection from the drop down boxes for each POETE category.  Identify any gap that you have for each POETE in this core capability, include plans to reduce this gap. If applicable add a project and give a detailed description. Enter sustainment cost and if there will be a new project cost. If applicable enter the projected sustainment cost for the new project.",null,null,null,null,null,"Score",null,"Sustainment cost",null,"New Project cost",null,"Projected sustainment cost for new projects"]
[]
[]
[null,"Planning",null,null,null,null,null,{"$f":"INDEX(list!$A$1:$B$7,MATCH(Infrastructure_Systems!D19,Planning,0),2)","v":{"$error":"#N/A"}}]
[]
[]
[null,"Gap Description"]
[null,"ADD Project",null,null,null,null,null,null,null," "]
[null,"ADD Project",null,null,null,null,null,null,null," "]
[]
[]
[null,"Organization",null,null,null,null,null,{"$f":"INDEX(list!$A$9:$B$15,MATCH(Infrastructure_Systems!D27,Organization,0),2)","v":{"$error":"#N/A"}},null," "]
[]
[]
[null,"Gap Description",null," "]
[null,"ADD Project"]
[null,"ADD Project",null,null,null,null,null,null,null," "]
[]
[]
[null,"Equipment",null,null,null,null,null,{"$f":"INDEX(list!$A$17:$B$23,MATCH(Infrastructure_Systems!D35,Equipment,0),2)","v":{"$error":"#N/A"}}]
[]
[]
[null,"Gap Description",null," "]
[null,"ADD Project",null,null,null,null,null,null,null," "]
[null,"ADD Project",null,null,null,null,null,null,null," "]
[]
[]
[null,"Training",null,null,null,null,null,{"$f":"INDEX(list!$A$26:$B$32,MATCH(Infrastructure_Systems!D43,Training,0),2)","v":{"$error":"#N/A"}}]
[]
[]
[null,"Gap Description",null," "]
[null,"ADD Project",null,null,null,null,null,null,null," "]
[null,"ADD Project",null,null,null,null,null,null,null," "]
[]
[]
[null,"Exercise",null,null,null,null,null,{"$f":"INDEX(list!$A$34:$B$40,MATCH(Infrastructure_Systems!D51,Exercises,0),2)","v":{"$error":"#N/A"}}]
[]
[]
[null,"Gap Description",null," "]
[null,"ADD Project",null,null,null,null,null,null,null," "]
[null,"ADD Project",null,null,null,null,null,null,null," "]
[]
[]
[null,"Mutual Aid Description"]
[]
[]
[null,"Journal Notes"]

{"sheet":"Economic_Recovery","index":31,"n_rows":62,"n_cols":14,"rows_kept":62,"cut":false,"hidden":false,"merged":[[62,3,62,7],[53,3,53,13],[54,3,54,7],[55,3,55,7],[58,3,58,13],[59,3,59,7],[61,3,61,13],[51,3,51,7],[34,3,34,6],[35,3,35,7],[37,3,37,13],[38,3,38,7],[39,3,39,7],[42,3,42,6],[43,3,43,7],[45,3,45,13],[46,3,46,7],[47,3,47,7],[50,3,50,6],[31,3,31,7],[15,1,15,6],[16,1,16,7],[18,3,18,6],[19,3,19,7],[21,3,21,13],[22,3,22,7],[23,3,23,7],[26,3,26,6],[27,3,27,7],[29,3,29,13],[30,3,30,7],[13,1,13,13],[0,0,0,14],[2,3,2,13],[3,3,3,13],[5,3,5,13],[6,3,6,13],[8,1,8,13],[10,3,10,13]]}
["Core Capability: Economic Recovery"]
[]
[null,"THIRA Capability Target"]
[]
[]
[null,"Improvement Strategy"]
[]
[]
[null,"Mission Area Recommendations for improvement"]
[]
[null,"Recovery"]
[]
[]
[null,"POETE Scores and Costs"]
[]
[null,"Make a selection from the drop down boxes for each POETE category.  Identify any gap that you have for each POETE in this core capability, include plans to reduce this gap. If applicable add a project and give a detailed description. Enter sustainment cost and if there will be a new project cost. If applicable enter the projected sustainment cost for the new project.",null,null,null,null,null,"Score",null,"Sustainment cost",null,"New Project cost",null,"Projected sustainment cost for new projects"]
[]
[]
[null,"Planning",null,null,null,null,null,{"$f":"INDEX(list!$A$1:$B$7,MATCH(Economic_Recovery!D19,Planning,0),2)","v":{"$error":"#N/A"}}]
[]
[]
[null,"Gap Description"]
[null,"ADD Project",null,null,null,null,null,null,null," "]
[null,"ADD Project",null,null,null,null,null,null,null," "]
[]
[]
[null,"Organization",null,null,null,null,null,{"$f":"INDEX(list!$A$9:$B$15,MATCH(Economic_Recovery!D27,Organization,0),2)","v":{"$error":"#N/A"}},null," "]
[]
[]
[null,"Gap Description",null," "]
[null,"ADD Project"]
[null,"ADD Project",null,null,null,null,null,null,null," "]
[]
[]
[null,"Equipment",null,null,null,null,null,{"$f":"INDEX(list!$A$17:$B$23,MATCH(Economic_Recovery!D35,Equipment,0),2)","v":{"$error":"#N/A"}}]
[]
[]
[null,"Gap Description",null," "]
[null,"ADD Project",null,null,null,null,null,null,null," "]
[null,"ADD Project",null,null,null,null,null,null,null," "]
[]
[]
[null,"Training",null,null,null,null,null,{"$f":"INDEX(list!$A$26:$B$32,MATCH(Economic_Recovery!D43,Training,0),2)","v":{"$error":"#N/A"}}]
[]
[]
[null,"Gap Description",null," "]
[null,"ADD Project",null,null,null,null,null,null,null," "]
[null,"ADD Project",null,null,null,null,null,null,null," "]
[]
[]
[null,"Exercise",null,null,null,null,null,{"$f":"INDEX(list!$A$34:$B$40,MATCH(Economic_Recovery!D51,Exercises,0),2)","v":{"$error":"#N/A"}}]
[]
[]
[null,"Gap Description",null," "]
[null,"ADD Project",null,null,null,null,null,null,null," "]
[null,"ADD Project",null,null,null,null,null,null,null," "]
[]
[]
[null,"Mutual Aid Description"]
[]
[]
[null,"Journal Notes"]

{"sheet":"Health_and_Social_Services","index":32,"n_rows":62,"n_cols":14,"rows_kept":62,"cut":false,"hidden":false,"merged":[[62,3,62,7],[53,3,53,13],[54,3,54,7],[55,3,55,7],[58,3,58,13],[59,3,59,7],[61,3,61,13],[51,3,51,7],[34,3,34,6],[35,3,35,7],[37,3,37,13],[38,3,38,7],[39,3,39,7],[42,3,42,6],[43,3,43,7],[45,3,45,13],[46,3,46,7],[47,3,47,7],[50,3,50,6],[31,3,31,7],[15,1,15,6],[16,1,16,7],[18,3,18,6],[19,3,19,7],[21,3,21,13],[22,3,22,7],[23,3,23,7],[26,3,26,6],[27,3,27,7],[29,3,29,13],[30,3,30,7],[13,1,13,13],[0,0,0,14],[2,3,2,13],[3,3,3,13],[5,3,5,13],[6,3,6,13],[8,1,8,13],[10,3,10,13]]}
["Core Capability: Health and Social Services"]
[]
[null,"THIRA Capability Target"]
[]
[]
[null,"Improvement Strategy"]
[]
[]
[null,"Mission Area Recommendations for improvement"]
[]
[null,"Recovery"]
[]
[]
[null,"POETE Scores and Costs"]
[]
[null,"Make a selection from the drop down boxes for each POETE category.  Identify any gap that you have for each POETE in this core capability, include plans to reduce this gap. If applicable add a project and give a detailed description. Enter sustainment cost and if there will be a new project cost. If applicable enter the projected sustainment cost for the new project.",null,null,null,null,null,"Score",null,"Sustainment cost",null,"New Project cost",null,"Projected sustainment cost for new projects"]
[]
[]
[null,"Planning",null,null,null,null,null,{"$f":"INDEX(list!$A$1:$B$7,MATCH(Health_and_Social_Services!D19,Planning,0),2)","v":{"$error":"#N/A"}}]
[]
[]
[null,"Gap Description"]
[null,"ADD Project",null,null,null,null,null,null,null," "]
[null,"ADD Project",null,null,null,null,null,null,null," "]
[]
[]
[null,"Organization",null,null,null,null,null,{"$f":"INDEX(list!$A$9:$B$15,MATCH(Health_and_Social_Services!D27,Organization,0),2)","v":{"$error":"#N/A"}},null," "]
[]
[]
[null,"Gap Description",null," "]
[null,"ADD Project"]
[null,"ADD Project",null,null,null,null,null,null,null," "]
[]
[]
[null,"Equipment",null,null,null,null,null,{"$f":"INDEX(list!$A$17:$B$23,MATCH(Health_and_Social_Services!D35,Equipment,0),2)","v":{"$error":"#N/A"}}]
[]
[]
[null,"Gap Description",null," "]
[null,"ADD Project",null,null,null,null,null,null,null," "]
[null,"ADD Project",null,null,null,null,null,null,null," "]
[]
[]
[null,"Training",null,null,null,null,null,{"$f":"INDEX(list!$A$26:$B$32,MATCH(Health_and_Social_Services!D43,Training,0),2)","v":{"$error":"#N/A"}}]
[]
[]
[null,"Gap Description",null," "]
[null,"ADD Project",null,null,null,null,null,null,null," "]
[null,"ADD Project",null,null,null,null,null,null,null," "]
[]
[]
[null,"Exercise",null,null,null,null,null,{"$f":"INDEX(list!$A$34:$B$40,MATCH(Health_and_Social_Services!D51,Exercises,0),2)","v":{"$error":"#N/A"}}]
[]
[]
[null,"Gap Description",null," "]
[null,"ADD Project",null,null,null,null,null,null,null," "]
[null,"ADD Project",null,null,null,null,null,null,null," "]
[]
[]
[null,"Mutual Aid Description"]
[]
[]
[null,"Journal Notes"]

{"sheet":"Housing","index":33,"n_rows":62,"n_cols":14,"rows_kept":62,"cut":false,"hidden":false,"merged":[[62,3,62,7],[53,3,53,13],[54,3,54,7],[55,3,55,7],[58,3,58,13],[59,3,59,7],[61,3,61,13],[51,3,51,7],[34,3,34,6],[35,3,35,7],[37,3,37,13],[38,3,38,7],[39,3,39,7],[42,3,42,6],[43,3,43,7],[45,3,45,13],[46,3,46,7],[47,3,47,7],[50,3,50,6],[31,3,31,7],[15,1,15,6],[16,1,16,7],[18,3,18,6],[19,3,19,7],[21,3,21,13],[22,3,22,7],[23,3,23,7],[26,3,26,6],[27,3,27,7],[29,3,29,13],[30,3,30,7],[13,1,13,13],[0,0,0,14],[2,3,2,13],[3,3,3,13],[5,3,5,13],[6,3,6,13],[8,1,8,13],[10,3,10,13]]}
["Core Capability: Housing"]
[]
[null,"THIRA Capability Target"]
[]
[]
[null,"Improvement Strategy"]
[]
[]
[null,"Mission Area Recommendations for improvement"]
[]
[null,"Recovery"]
[]
[]
[null,"POETE Scores and Costs"]
[]
[null,"Make a selection from the drop down boxes for each POETE category.  Identify any gap that you have for each POETE in this core capability, include plans to reduce this gap. If applicable add a project and give a detailed description. Enter sustainment cost and if there will be a new project cost. If applicable enter the projected sustainment cost for the new project.",null,null,null,null,null,"Score",null,"Sustainment cost",null,"New Project cost",null,"Projected sustainment cost for new projects"]
[]
[]
[null,"Planning",null,null,null,null,null,{"$f":"INDEX(list!$A$1:$B$7,MATCH(Housing!D19,Planning,0),2)","v":{"$error":"#N/A"}}]
[]
[]
[null,"Gap Description"]
[null,"ADD Project",null,null,null,null,null,null,null," "]
[null,"ADD Project",null,null,null,null,null,null,null," "]
[]
[]
[null,"Organization",null,null,null,null,null,{"$f":"INDEX(list!$A$9:$B$15,MATCH(Housing!D27,Organization,0),2)","v":{"$error":"#N/A"}},null," "]
[]
[]
[null,"Gap Description",null," "]
[null,"ADD Project"]
[null,"ADD Project",null,null,null,null,null,null,null," "]
[]
[]
[null,"Equipment",null,null,null,null,null,{"$f":"INDEX(list!$A$17:$B$23,MATCH(Housing!D35,Equipment,0),2)","v":{"$error":"#N/A"}}]
[]
[]
[null,"Gap Description",null," "]
[null,"ADD Project",null,null,null,null,null,null,null," "]
[null,"ADD Project",null,null,null,null,null,null,null," "]
[]
[]
[null,"Training",null,null,null,null,null,{"$f":"INDEX(list!$A$26:$B$32,MATCH(Housing!D43,Training,0),2)","v":{"$error":"#N/A"}}]
[]
[]
[null,"Gap Description",null," "]
[null,"ADD Project",null,null,null,null,null,null,null," "]
[null,"ADD Project",null,null,null,null,null,null,null," "]
[]
[]
[null,"Exercise",null,null,null,null,null,{"$f":"INDEX(list!$A$34:$B$40,MATCH(Housing!D51,Exercises,0),2)","v":{"$error":"#N/A"}}]
[]
[]
[null,"Gap Description",null," "]
[null,"ADD Project",null,null,null,null,null,null,null," "]
[null,"ADD Project",null,null,null,null,null,null,null," "]
[]
[]
[null,"Mutual Aid Description"]
[]
[]
[null,"Journal Notes"]

{"sheet":"Natural_and_Cultural_Resources","index":34,"n_rows":62,"n_cols":14,"rows_kept":62,"cut":false,"hidden":false,"merged":[[61,3,61,13],[62,3,62,7],[29,3,29,13],[30,3,30,7],[31,3,31,7],[34,3,34,6],[37,3,37,13],[38,3,38,7],[59,3,59,7],[58,3,58,13],[53,3,53,13],[54,3,54,7],[55,3,55,7],[35,3,35,7],[39,3,39,7],[27,3,27,7],[22,3,22,7],[23,3,23,7],[51,3,51,7],[50,3,50,6],[43,3,43,7],[42,3,42,6],[45,3,45,13],[46,3,46,7],[47,3,47,7],[0,0,0,14],[2,3,2,13],[3,3,3,13],[26,3,26,6],[19,3,19,7],[15,1,15,6],[16,1,16,7],[18,3,18,6],[21,3,21,13],[5,3,5,13],[6,3,6,13],[8,1,8,13],[10,3,10,13],[13,1,13,13]]}
["Core Capability: Natural and Cultural Resources"]
[]
[null,"THIRA Capability Target"]
[]
[]
[null,"Improvement Strategy"]
[]
[]
[null,"Mission Area Recommendations for improvement"]
[]
[null,"Recovery"]
[]
[]
[null,"POETE Scores and Costs"]
[]
[null,"Make a selection from the drop down boxes for each POETE category.  Identify any gap that you have for each POETE in this core capability, include plans to reduce this gap. If applicable add a project and give a detailed description. Enter sustainment cost and if there will be a new project cost. If applicable enter the projected sustainment cost for the new project.",null,null,null,null,null,"Score",null,"Sustainment cost",null,"New Project cost",null,"Projected sustainment cost for new projects"]
[]
[]
[null,"Planning",null,null,null,null,null,{"$f":"INDEX(list!$A$1:$B$7,MATCH(Natural_and_Cultural_Resources!D19,Planning,0),2)","v":{"$error":"#N/A"}}]
[]
[]
[null,"Gap Description"]
[null,"ADD Project",null,null,null,null,null,null,null," "]
[null,"ADD Project",null,null,null,null,null,null,null," "]
[]
[]
[null,"Organization",null,null,null,null,null,{"$f":"INDEX(list!$A$9:$B$15,MATCH(Natural_and_Cultural_Resources!D27,Organization,0),2)","v":{"$error":"#N/A"}},null," "]
[]
[]
[null,"Gap Description",null," "]
[null,"ADD Project"]
[null,"ADD Project",null,null,null,null,null,null,null," "]
[]
[]
[null,"Equipment",null,null,null,null,null,{"$f":"INDEX(list!$A$17:$B$23,MATCH(Natural_and_Cultural_Resources!D35,Equipment,0),2)","v":{"$error":"#N/A"}}]
[]
[]
[null,"Gap Description",null," "]
[null,"ADD Project",null,null,null,null,null,null,null," "]
[null,"ADD Project",null,null,null,null,null,null,null," "]
[]
[]
[null,"Training",null,null,null,null,null,{"$f":"INDEX(list!$A$26:$B$32,MATCH(Natural_and_Cultural_Resources!D43,Training,0),2)","v":{"$error":"#N/A"}}]
[]
[]
[null,"Gap Description",null," "]
[null,"ADD Project",null,null,null,null,null,null,null," "]
[null,"ADD Project",null,null,null,null,null,null,null," "]
[]
[]
[null,"Exercise",null,null,null,null,null,{"$f":"INDEX(list!$A$34:$B$40,MATCH(Natural_and_Cultural_Resources!D51,Exercises,0),2)","v":{"$error":"#N/A"}}]
[]
[]
[null,"Gap Description",null," "]
[null,"ADD Project",null,null,null,null,null,null,null," "]
[null,"ADD Project",null,null,null,null,null,null,null," "]
[]
[]
[null,"Mutual Aid Description"]
[]
[]
[null,"Journal Notes"]

{"sheet":"Part 3 Prioritization","index":35,"n_rows":88,"n_cols":18,"rows_kept":88,"cut":false,"hidden":false,"merged":[[50,0,50,14],[39,1,39,4],[39,6,39,13],[40,3,40,7],[42,1,42,4],[42,6,42,13],[43,3,43,7],[37,3,37,7],[27,1,27,4],[27,6,27,13],[28,3,28,7],[30,1,30,4],[30,6,30,13],[31,3,31,7],[33,1,33,4],[33,6,33,13],[34,3,34,7],[36,1,36,4],[36,6,36,13],[25,3,25,7],[15,1,15,4],[15,6,15,13],[16,3,16,7],[18,1,18,4],[18,6,18,13],[19,3,19,7],[21,1,21,4],[21,6,21,13],[22,3,22,7],[24,1,24,4],[24,6,24,13],[13,3,13,7],[0,0,0,14],[1,0,1,14],[3,0,3,14],[5,1,5,13],[6,1,6,13],[7,1,7,13],[9,1,9,4],[9,6,9,13],[10,1,10,4],[12,1,12,4],[12,6,12,13]]}
["Part 3 Prioritize Core Capabilities"]
[]
[]
[]
[]
[null,"Prioritizing Core Capabilities"]
[null,"Once the Assessment Capabilities in Part 2 are completed, the Region is asked to prioritize their top 11 Core Capabilities. The top 11 Core Capabilities from the Training and Exercise Planning Workshop is provided."]
[]
[]
[null,"Training and Exercise Planning Workshop (TEPW)",null,null,null,null,"Region Priorities"]
[]
[]
[null,"Planning",null,null,null,1]
[]
[]
[null,"Public Information and Warning",null,null,null,2]
[]
[]
[null,"Mass Care Services",null,null,null,3]
[]
[]
[null,"Operational Coordination",null,null,null,4]
[]
[]
[null,"Long-term Vulnerability",null,null,null,5]
[]
[]
[null,"Environmental Response/Health and Safety",null,null,null,6]
[]
[]
[null,"Cybersecurity",null,null,null,7]
[]
[]
[null,"Intelligence and Information Sharing",null,null,null,8]
[]
[]
[null,"Access Control and Identity Verification",null,null,null,9]
[]
[]
[null,"Operational Communication",null,null,null,10]
[]
[]
[null,"Public and Private Services and Resources",null,null,null,11]
[]
[]
[]
[]
[]
[]
[]
[]
[]
[]
[]
[]
[]
[]
[null,null,null,null,null,null,null,null,null,null,null,null,null,null,null,null,null,"Access Control and Identity Verification"]
[null,null,null,null,null,null,null,null,null,null,null,null,null,null,null,null,null,"Community Resilience"]
[null,null,null,null,null,null,null,null,null,null,null,null,null,null,null,null,null,"Critical Transportation"]
[null,null,null,null,null,null,null,null,null,null,null,null,null,null,null,null,null,"Cybersecurity"]
[null,null,null,null,null,null,null,null,null,null,null,null,null,null,null,null,null,"Economic Recovery"]
[null,null,null,null,null,null,null,null,null,null,null,null,null,null,null,null,null,"Environmental Response/Health and Safety"]
[null,null,null,null,null,null,null,null,null,null,null,null,null,null,null,null,null,"Fatality Management Services"]
[null,null,null,null,null,null,null,null,null,null,null,null,null,null,null,null,null,"Forensics and Attribution"]
[null,null,null,null,null,null,null,null,null,null,null,null,null,null,null,null,null,"Health and Social Services"]
[null,null,null,null,null,null,null,null,null,null,null,null,null,null,null,null,null,"Housing"]
[null,null,null,null,null,null,null,null,null,null,null,null,null,null,null,null,null,"Infrastructure Systems"]
[null,null,null,null,null,null,null,null,null,null,null,null,null,null,null,null,null,"Intelligence and Information Sharing"]
[null,null,null,null,null,null,null,null,null,null,null,null,null,null,null,null,null,"Interdiction and Disruption"]
[null,null,null,null,null,null,null,null,null,null,null,null,null,null,null,null,null,"Long-term Vulnerability"]
[null,null,null,null,null,null,null,null,null,null,null,null,null,null,null,null,null,"Mass Care Services"]
[null,null,null,null,null,null,null,null,null,null,null,null,null,null,null,null,null,"Mass Search and Rescue Operations"]
[null,null,null,null,null,null,null,null,null,null,null,null,null,null,null,null,null,"Natural and Cultural Resources"]
[null,null,null,null,null,null,null,null,null,null,null,null,null,null,null,null,null,"On-scene Security and Protection"]
[null,null,null,null,null,null,null,null,null,null,null,null,null,null,null,null,null,"Operational Communication"]
[null,null,null,null,null,null,null,null,null,null,null,null,null,null,null,null,null,"Operational Coordination"]
[null,null,null,null,null,null,null,null,null,null,null,null,null,null,null,null,null,"Physical Protective Measures"]
[null,null,null,null,null,null,null,null,null,null,null,null,null,null,null,null,null,"Planning"]
[null,null,null,null,null,null,null,null,null,null,null,null,null,null,null,null,null,"Public and Private Services and Resources"]
[null,null,null,null,null,null,null,null,null,null,null,null,null,null,null,null,null,"Public Health and Medical Services"]
[null,null,null,null,null,null,null,null,null,null,null,null,null,null,null,null,null,"Public Information and Warning"]
[null,null,null,null,null,null,null,null,null,null,null,null,null,null,null,null,null,"Risk and Disaster Resilience Management"]
[null,null,null,null,null,null,null,null,null,null,null,null,null,null,null,null,null,"Risk Management for Protection Programs and Activities"]
[null,null,null,null,null,null,null,null,null,null,null,null,null,null,null,null,null,"Search and Detection"]
[null,null,null,null,null,null,null,null,null,null,null,null,null,null,null,null,null,"Situational Assessment"]
[null,null,null,null,null,null,null,null,null,null,null,null,null,null,null,null,null,"Supply Chain Integrity and Security"]
[null,null,null,null,null,null,null,null,null,null,null,null,null,null,null,null,null,"Threats and Hazard Identification"]